Cogmind - Beta 16 @@@ ROGUE MODE // 2025.12.08 @ 23:02:03 Player: H3-MLN Result: Establishing 0b11! Performance ------------- Evolutions (9) 4500 Regions Visited (33) 6600 Robots Destroyed (284) 1420 Value Destroyed (17400) 17400 Prototype IDs (408) 8160 Alien Tech Used (9) 1800 Bonus (53714) 53714 TOTAL SCORE: 93594 Bonus ------- High Alert Combat Kills 3737 Follower Combat Kills 3064 Forged Quantum Companion 1000 Registered with UFD 300 Met Optimus in HQ 500 Met Imprinter 300 Destroyed Z-Imprinter 1000 Met Warlord at Base 500 MAIN.C Attacked Warlord 500 Scanned by Researcher 500 Recovered Sigix Corpse 2000 Destroyed MAIN.C Guards 500 Met MAIN.C 5000 Destroyed MAIN.C Shell 5000 Destroyed MAIN.C 10000 Met Architect 300 Destroyed A8 300 Destroyed A5 500 Destroyed A4 700 Destroyed A3 800 Destroyed Architect 15000 Win 3000 Friendly Fire -787 Cogmind --------- Core Integrity 491/1600 Matter 295/300 Energy 1536/1540 System Corruption 1% Temperature Cool (7) Movement Hovering (42) Location 0b11 Command Parts ------- > --- POWER (2) -------- Hybrid Graviton Reactor Zero-point Reactor > --- PROPULSION (7) --- Cooled Antigrav System Combat Antigrav System Antigrav Array Gravjet Array (fused) Concept Gyrokinetic System > --- UTILITY (13) ----- Concept Thermoelectric Network Concept Antigrav Storage Unit Concept Melee Reflex Suite Concept Weapon Articulator Experimental Core Analyzer Experimental Core Analyzer Experimental Weapon Cycler Concept Reaction Jets Experimental Powered Armor Experimental Field Recycling Unit Concept Impact Drone Bay (0/6) Concept Navigation Harness > --- WEAPON (3) ------- Molecular Scythe > --- INVENTORY (25) --- Zero-point Reactor Cooled Antigrav System Desublimator Experimental Power Amplifier Concept Chromion Battery (800) Concept NT7 Matterbank (750) Gravity Neutralizer Precision Energy Filter Advanced Particle Charger Mini Quantum Capacitor Femtoactuators Medium Regenerative Plating Concept Beam Splitter Advanced Force Field Concept Plasma Driver Concept Plasma Driver Cooled Directed Potential Cannon Concept Miniperforator Z-bomb Delivery System Sigix Corpse Peak State ------------ > --- POWER ------------ Hybrid Graviton Reactor Zero-point Reactor > --- PROPULSION ------- Gravjet Array Gravjet Array Gravjet Array Concept Combat Aerolev Unit > --- UTILITY ---------- Concept Antigrav Storage Unit Spectral Analyzer Concept Melee Reflex Suite Experimental Core Analyzer Femtoactuators Concept Reaction Jets Concept Cloak Mesh Concept Cloak Mesh Medium Regenerative Plating Advanced Force Field Advanced Corruption Screen Concept Navigation Harness > --- WEAPON ----------- Quantum Companion Sigix Broadsword > --- INVENTORY -------- Concept Gyrokinetic System Concept Phasing Heat Sink Concept Thermoelectric Network Concept Chromion Battery Concept Chromion Battery Concept NT7 Matterbank Concept Weapon Articulator Mini Quantum Capacitor Concept Reaction Jets Improved Utility Shielding Concept Beam Splitter Advanced Force Field Concept Antimissile System Concept Impact Drone Bay Concept Impact Drone Bay Transdimensional Reconstructor Concept Plasma Driver Concept Plasma Driver Hypervelocity Alpha Cannon Cooled Directed Potential Cannon Concept Miniperforator Z-bomb Delivery System [Rating: 298] Favorites ----------- Power Light Fission Core Engine Subdweller Power Source Power Core Light Fission Core Reactor Hybrid Graviton Reactor Propulsion Spiked Treads Treads Spiked Treads Leg Concept Biometal Exoskeleton Wheel Armored Huge Wheel Hover Unit Gravjet Array Flight Unit Flightbrick Utility Advanced Melee Analysis Suite Device Advanced Sensor Array Storage Large Storage Unit Processor Advanced Melee Analysis Suite Hackware Makeshift Hacking Suite Protection Makeshift Kinetic Plating Artifact Phase Armor Weapon Companion Sword Energy Gun Subdweller Laser Energy Cannon Subdweller Beam Cannon Ballistic Gun Assault Rifle Ballistic Cannon Concept Miniperforator Launcher Fusion Bomb Launcher Special Weapon CPS Tube Impact Weapon Hammer Slashing Weapon Companion Sword Piercing Weapon Makeshift Spear Special Melee Weapon Improved Datajack Build | -11 -10 -10 -10 -8 -8 -6 -6 -6 -6 -6 -5 -5 -5 -5 -5 -5 -5 -4 -4 -4 -4 -4 -4 -4 -3 -3 -3 -3 -2 -2 -1 -1 -1 ------- Run | Yrd Mat Min Sub Rec Scr Fac Low Low Zio Dee Pro Fac Was Fac Upp Upp War Pro Fac Was Fac Upp Upp Zhi Pro Res Qua Frg Res Tes Acc Com Ac0 Slots Evolved 18 | . . . . . . 8 . . . . . 2 . . . . . . 2 . . . . . . 2 . . 2 . 2 . . Power 1 | . . . . . . 1 . . . . . . . . . . . . . . . . . . . . . . . . . . . Propulsion 5 | . . . . . . 3 . . . . . 1 . . . . . . . . . . . . . 1 . . . . . . . Utility 11 | . . . . . . 4 . . . . . 1 . . . . . . 2 . . . . . . 1 . . 1 . 2 . . Weapon 1 | . . . . . . . . . . . . . . . . . . . . . . . . . . . . . 1 . . . . Parts Attached 320 | 7 8 . 37 2 12 13 2 1 1 15 . 8 1 9 . 2 9 . 10 . 4 3 7 3 4 10 27 82 2 13 . 10 18 Power 35 | 1 1 . 7 . . 3 . . . 1 . 2 . . . . 1 . 2 . . . 4 . 1 . 4 7 . 1 . . . Engine 14 | 1 1 . 7 . . 1 . . . . . 1 . . . . . . 1 . . . 1 . 1 . . . . . . . . Core 9 | . . . . . . 2 . . . . . 1 . . . . . . 1 . . . 3 . . . 2 . . . . . . Reactor 12 | . . . . . . . . . . 1 . . . . . . 1 . . . . . . . . . 2 7 . 1 . . . Propulsion 69 | 2 . . 12 . 3 1 . . . 3 . 1 . . . . 3 . . . 2 2 2 . 2 2 5 24 . . . . 5 Treads 9 | 1 . . 5 . . . . . . . . . . . . . . . . . . . . . . 1 . 2 . . . . . Leg 4 | . . . . . . . . . . . . . . . . . 1 . . . . . . . . . . 3 . . . . . Wheel 10 | 1 . . 7 . 1 . . . . . . . . . . . . . . . . . . . . . . 1 . . . . . Hover 23 | . . . . . . . . . . 2 . . . . . . 1 . . . . . 1 . . . . 14 . . . . 5 Flight 23 | . . . . . 2 1 . . . 1 . 1 . . . . 1 . . . 2 2 1 . 2 1 5 4 . . . . . Utility 157 | 2 3 . 3 2 4 9 . . 1 8 . 5 . 8 . 2 3 . 5 . 2 1 1 2 1 5 14 45 1 11 . 8 11 Device 74 | 1 . . 1 2 1 2 . . 1 4 . 3 . 2 . 2 3 . 1 . 1 . 1 1 1 3 5 24 . 3 . 7 5 Storage 15 | 1 2 . . . 2 . . . . 1 . . . 1 . . . . . . . . . . . 1 1 5 . 1 . . . Processor 30 | . . . . . 1 5 . . . . . 1 . 3 . . . . 1 . . . . . . 1 5 6 1 3 . . 3 Hackware 11 | . . . . . . 2 . . . . . 1 . 2 . . . . 3 . 1 1 . . . . 1 . . . . . . Protection 26 | . 1 . 2 . . . . . . 3 . . . . . . . . . . . . . 1 . . 1 10 . 4 . 1 3 Artifact 1 | . . . . . . . . . . . . . . . . . . . . . . . . . . . 1 . . . . . . Weapon 59 | 2 4 . 15 . 5 . 2 1 . 3 . . 1 1 . . 2 . 3 . . . . 1 . 3 4 6 1 1 . 2 2 Energy Gun 10 | . . . 4 . . . . . . 3 . . . . . . . . . . . . . . . 2 . 1 . . . . . Energy Cannon 13 | . . . 4 . . . . . . . . . 1 . . . 2 . 1 . . . . 1 . . 1 2 . . . 1 . Ballistic Gun 11 | 2 4 . 4 . . . . . . . . . . . . . . . . . . . . . . . . 1 . . . . . Ballistic Cannon 2 | . . . . . . . . . . . . . . . . . . . . . . . . . . . . . 1 . . . 1 Launcher 2 | . . . . . . . . . . . . . . . . . . . . . . . . . . . . 1 . 1 . . . Special Weapon 6 | . . . 1 . 3 . 1 . . . . . . . . . . . . . . . . . . . 1 . . . . . . Impact Weapon 3 | . . . . . 1 . . . . . . . . . . . . . . . . . . . . 1 . 1 . . . . . Slashing Weapon 6 | . . . 1 . 1 . . . . . . . . . . . . . . . . . . . . . 2 . . . . 1 1 Piercing Weapon 3 | . . . 1 . . . 1 . . . . . . . . . . . 1 . . . . . . . . . . . . . . Special Melee Weapon 3 | . . . . . . . . 1 . . . . . 1 . . . . 1 . . . . . . . . . . . . . . Unidentified Prototypes 64 | . . . . . 1 . 1 . 1 11 . . 1 1 . . 9 . 1 . 1 . . 3 . 3 3 17 . 7 . 1 3 Parts Lost 68 | . . . 5 . . . . . . 1 . . . 2 . . . . 2 . 3 . . . . 4 16 22 . . . 2 11 Power 11 | . . . . . . . . . . . . . . . . . . . 2 . 1 . . . . 2 3 3 . . . . . Propulsion 23 | . . . 3 . . . . . . . . . . . . . . . . . 2 . . . . 1 5 8 . . . . 4 Utility 28 | . . . 1 . . . . . . 1 . . . 1 . . . . . . . . . . . 1 7 10 . . . 2 5 Weapon 6 | . . . 1 . . . . . . . . . . 1 . . . . . . . . . . . . 1 1 . . . . 2 Highest Loss Streak 16 | . . . 2 . . . . . . 1 . . . 1 . . . . 2 . 3 . . . . 3 16 4 . . . 1 3 To Critical Strikes 2 | . . . . . . . . . . . . . . . . . . . . . . . . . . . . . . . . . 2 Average Backups 10 | 2 8 10 6 5 8 7 10 10 12 6 11 10 11 10 11 10 10 11 10 11 11 10 11 12 13 13 10 15 21 22 21 22 19 Power . | . . . . . . . . . . . . . . . . . . . . . . . . . 1 . . . . . . . 1 Propulsion . | 1 2 3 1 1 1 1 1 1 1 . . . . . . . . . . 1 . . . . . . . . 1 1 1 1 1 Utility 5 | . 2 4 2 3 4 2 4 4 6 2 7 7 7 6 6 5 6 7 5 5 5 4 5 6 7 7 4 8 13 14 13 12 11 Weapon 2 | . 1 2 2 . . . 2 2 2 2 3 2 2 2 2 2 2 2 2 3 2 3 3 3 2 2 3 4 6 6 6 6 5 Tool/Special . | . . . . . . . . . . . . . . . . . . . . . . . . . . . . . . . . . . Unused Backups 113 | . 4 2 7 . 21 1 2 13 2 9 3 1 . 1 1 . 1 . 1 . . . 7 1 4 10 2 12 . . . 1 7 Power 13 | . 1 . . . 1 1 . 2 . . 2 . . . . . . . . . . . 2 . 1 2 . . . . . . 1 Propulsion 22 | . . . . . 6 . 1 2 . 1 . . . . . . . . . . . . 1 . . 4 . 6 . . . . 1 Utility 49 | . 1 2 4 . 7 . . 6 2 6 1 1 . . . . . . 1 . . . 3 . 2 4 1 3 . . . 1 4 Weapon 25 | . 2 . 2 . 5 . 1 3 . 2 . . . . 1 . 1 . . . . . 1 1 1 . 1 3 . . . . 1 Tool/Special 4 | . . . 1 . 2 . . . . . . . . 1 . . . . . . . . . . . . . . . . . . . Average Slot Usage (%) 78 | . 99 100 96 97 62 59 69 72 74 70 66 78 80 82 84 83 83 83 83 85 84 62 85 86 85 83 69 78 78 77 79 78 82 Engine 5 | . 14 14 14 14 5 . . . . . . 3 5 5 5 5 5 5 3 4 3 . 2 5 5 4 . . . . . . . Core 1 | . . . . . . 4 5 4 5 5 5 5 5 5 5 5 5 5 3 4 4 . 5 2 . . 1 . . . . . . Reactor 1 | . . . . . . . . . . . . . . . . . . . . . . . . . . . 3 7 8 8 8 8 7 Treads 6 | . 14 14 17 28 12 . . . . . . . . . . . . . . . . . . . . . . 4 . . . . . Wheel 3 | . 14 14 10 . 6 . . . . . . . . . . . . . . . . . . . . . . . . . . . . Hover 1 | . . . . . . . . . . . . . . . . . . . . . . . 1 . . . . 6 17 17 16 16 18 Flight 6 | . . . . . 2 10 11 11 11 10 11 14 15 14 15 15 14 15 14 14 13 12 22 26 26 22 17 2 . . . . . Device 7 | . 10 . 4 11 4 7 5 5 5 7 5 5 5 5 5 4 5 4 7 9 9 5 4 5 5 8 11 13 17 15 23 27 26 Storage 7 | . 14 14 11 14 10 5 5 5 5 1 5 5 5 5 5 5 5 5 4 4 4 5 5 5 5 4 2 4 4 4 4 4 4 Processor 11 | . . . . . 3 16 27 27 27 27 27 25 25 22 21 21 21 21 20 19 19 15 15 15 15 11 11 13 15 18 16 8 12 Hackware 5 | . . . . . . 10 11 11 11 11 11 14 15 14 15 15 15 15 17 19 19 17 21 21 21 19 9 . . . . . . Protection 3 | . 3 14 9 . . . . . . 1 . . . . . . . . . . . . . . . 1 . 9 6 4 4 7 4 Energy Cannon 5 | . . . 15 28 9 . . . . . . . . . . . . . . . . . . 2 . . . 3 . . . . . Ballistic Gun 2 | . 27 28 6 . . . . . . . . . . . . . . . . . . . . . . . . . . . . . . Slashing Weapon 2 | . . . . . . 2 . . . 3 . 4 5 5 5 4 4 5 3 4 4 4 4 2 5 4 2 3 7 7 7 6 7 Peak Build Rating 298 | 7 8 8 20 19 33 90 107 98 106 108 97 121 121 119 112 120 123 121 143 137 152 95 113 105 109 129 165 265 287 280 295 298 293 Average Rating 92 | 5 7 7 16 18 18 78 93 93 97 95 92 109 112 110 112 112 116 116 132 137 144 84 104 101 102 123 113 211 278 272 290 289 278 On Entrance 110 | . 7 8 8 16 19 33 85 95 93 95 97 93 111 113 112 112 112 117 117 137 137 71 95 99 105 109 116 77 255 275 267 295 279 Avg Prop Armor Cover (%) 13 | 13 11 9 10 . 42 . . . . . . . 37 . . . 1 . . . . 13 7 . . 5 7 11 . . . . . Naked Turns 4 | . . . . . 4 . . . . . . . . . . . . . . . . . . . . . . . . . . . . Heaviest Build 205 | 14 22 22 38 32 205 35 30 34 34 31 29 37 47 37 35 36 36 44 36 35 44 29 54 39 39 44 55 110 95 107 112 121 117 Greatest Support 200 | 16 16 16 40 40 40 30 30 30 30 30 29 35 35 36 36 36 36 36 36 36 42 24 39 39 42 52 55 200 106 106 106 106 107 Greatest Overweight (x) 11 | . 1 1 3 . 7 1 . 1 1 1 . 1 11 1 . . 1 1 . . 1 9 1 . . 1 1 3 . 1 1 1 1 Average Overweight (x) . | . . 1 1 . 1 . . . . . . . 3 . . . . . . . . 2 . . . . . . . . . . . Largest Inventory Capacity 35 | 8 10 10 10 10 35 15 15 15 15 15 15 15 15 15 15 15 15 15 15 15 15 15 15 15 15 15 15 25 25 25 25 25 25 Average Capacity 15 | 7 9 10 9 10 16 15 15 15 15 7 15 15 15 15 15 15 15 15 15 15 15 15 15 15 15 15 12 20 25 25 25 25 25 Most Carried 30 | 4 10 10 10 10 30 15 15 15 15 15 15 15 15 15 15 15 15 15 15 15 15 15 15 15 15 15 15 25 25 25 24 25 25 Average Carried 13 | 2 8 9 8 10 12 10 14 13 14 7 14 14 15 14 14 14 14 15 14 15 14 13 14 13 14 14 11 18 23 24 23 24 21 Final Capacity 25 | 8 10 10 10 10 15 15 15 15 15 15 15 15 15 15 15 15 15 15 15 15 15 15 15 15 15 15 5 25 25 25 25 25 25 Final Carried 25 | 4 10 10 10 10 15 14 15 15 15 15 15 15 15 15 15 15 15 15 15 15 15 15 14 14 15 15 5 25 23 25 24 25 22 Class Distribution -------------------- 33% | Mutant 13% | Scavenger-Mutant 13% | Hacker-Mutant 11% | Hacker-Sprinter 5% | Sprinter 5% | Hauler-Mutant 5% | Wizard-Sprinter 3% | Wizard-Mutant Dominant Class ---------------- Mutant | -10/Materials Mutant | -10/Mines Mutant | -10/Subcaves Mutant | -8/Recycling Mutant | -8/Scraptown Hacker-Mutant | -6/Factory Hacker-Mutant | -6/Lower Caves Hacker-Mutant | -6/Lower Caves Hacker-Mutant | -6/Zion Hacker-Mutant | -6/Deep Caves Hacker-Mutant | -5/Proximity Caves Hacker-Sprinter | -5/Factory Hacker-Mutant | -5/Waste Hacker-Sprinter | -5/Factory Hacker-Sprinter | -5/Upper Caves Hacker-Sprinter | -5/Upper Caves Hacker-Sprinter | -5/Warlord Hacker-Sprinter | -4/Proximity Caves Hacker-Sprinter | -4/Factory Hacker-Sprinter | -4/Waste Wizard-Sprinter | -4/Factory Hacker-Mutant | -4/Upper Caves Wizard-Mutant | -4/Upper Caves Wizard-Sprinter | -4/Zhirov Wizard-Sprinter | -3/Proximity Caves Wizard-Sprinter | -3/Research Mutant | -3/Quarantine Scavenger-Mutant | -3/Protoforge Sprinter | -2/Research Sprinter | -2/Testing Sprinter | -1/Access Sprinter | -1/Command Gladiator | -1/Access_0 Resources | -11 -10 -10 -10 -8 -8 -6 -6 -6 -6 -6 -5 -5 -5 -5 -5 -5 -5 -4 -4 -4 -4 -4 -4 -4 -3 -3 -3 -3 -2 -2 -1 -1 -1 ----------- Run | Yrd Mat Min Sub Rec Scr Fac Low Low Zio Dee Pro Fac Was Fac Upp Upp War Pro Fac Was Fac Upp Upp Zhi Pro Res Qua Frg Res Tes Acc Com Ac0 Matter Collected 13602 | 212 722 91 2129 197 276 353 170 70 85 325 10 160 30 285 80 93 242 80 385 . 173 188 154 . 186 475 307 2869 120 356 94 527 2158 Remotely . | . . . . . . . . . . . . . . . . . . . . . . . . . . . . . . . . . . Salvage Created 18560 | 112 538 80 1183 . 118 384 21 49 . 269 . 738 80 882 . 73 . 139 525 . 192 385 549 . 189 213 408 5256 445 815 839 1124 2954 Parts 862 | 8 36 3 81 . 9 21 3 1 . 16 . 22 2 40 . 4 . 4 28 . 11 7 12 . 5 14 13 258 14 42 34 19 155 Haulers Intercepted 11 | . 2 . . . . . . . . . . 1 . 5 . . . . . . . . . . . . . . 1 1 1 . . Recyclers Shooed 5 | 1 1 1 . . . 1 . . . . . . . . . . . . . . . . . . . . 1 . . . . . . Parts Field Recycled 13 | . . . . . 12 . . . . . . . . . . . . . . . . . . . . . . . . . . . 1 Retrieved Matter 640 | . . . . . 509 . . . . . . . . . . . . . . . . . . . . . . . . . . . 131 Parts Self-Destructed 52 | . . . 26 . . . . 1 . . 1 . . . . 4 . 4 . . . 5 5 . 6 . . . . . . . . Prevented 6 | . . . . . . . 1 . . . . . . . . . . . . . . 5 . . . . . . . . . . . Parts Restored 9 | . . . . . . . . . . . . . . . . . . . . . . . . . . . . 9 . . . . . Faulty 9 | . . . . . . . . . . . . . . . . . . . . . . . . . . . . 9 . . . . . Kills | -11 -10 -10 -10 -8 -8 -6 -6 -6 -6 -6 -5 -5 -5 -5 -5 -5 -5 -4 -4 -4 -4 -4 -4 -4 -3 -3 -3 -3 -2 -2 -1 -1 -1 ------- Run | Yrd Mat Min Sub Rec Scr Fac Low Low Zio Dee Pro Fac Was Fac Upp Upp War Pro Fac Was Fac Upp Upp Zhi Pro Res Qua Frg Res Tes Acc Com Ac0 Combat Hostiles Destroyed 209 | . 10 2 27 . . 2 . 1 . 3 . 1 . 1 . 3 . 4 3 . 3 . 1 . 2 3 5 75 2 4 7 15 35 Melee 69 | . . . . . . 2 . 1 . 3 . 1 . 1 . 3 . 4 3 . 1 . 1 . 2 3 5 11 . 4 7 6 11 Guns 27 | . 10 2 15 . . . . . . . . . . . . . . . . . . . . . . . . . . . . . . Cannons 84 | . . . 11 . . . . . . . . . . . . . . . . . 2 . . . . . . 49 2 . . 1 19 AOE 13 | . . . . . . . . . . . . . . . . . . . . . . . . . . . . 4 . . . 6 3 Classes Destroyed 35 | 2 5 . 4 . 3 2 1 . . 1 . . 1 2 . . . 1 . . 1 . 1 . 1 . . 9 . 1 . . . Worker 11 | . . . . . . 1 . . . . . 2 . . . . . . . . . . . . . 1 . 3 . 1 2 1 . Builder 2 | . . . . . . . . . . . . . . . . . . . . . 1 . . . . . . 1 . . . . . Tunneler 5 | 2 1 . . . . . . . . . . 1 . . . . . . 1 . . . . . . . . . . . . . . Hauler 11 | . 2 . . . . . . . . . . 1 . 5 . . . . . . . . . . . . . . 1 1 1 . . Recycler 13 | 1 1 . . . . 2 . . . . . 3 . 1 . . . . 1 . . . . . . . 1 . 1 . 1 1 . Minesweeper 3 | . . . . . . . . . . . . . . . . . . 1 . . . 1 1 . . . . . . . . . . Operator 9 | . 1 . . . . . . . . . . . . 3 . . . . 2 . 1 . . . . . . . . 1 . 1 . Drone 10 | . . . . . . . . . . . . . . . . . . . . . . . . . 2 . . 8 . . . . . Watcher 10 | . 3 . . . . . . . . . . 2 . 1 . . . . 2 . . . . . . . 2 . . . . . . Swarmer 36 | . 6 . 9 . . . . . . . . . . . . 3 . 4 . . . . . . . . 5 . . . . 9 . Saboteur 1 | . . . . . . . . . . . . . . . . . . . . . . . . . . . . 1 . . . . . Grunt 30 | . 4 2 1 . . . . . . . . 1 . . . . . . . . . . . . . . . 18 . . 4 . . Brawler 2 | . . . . . . . . . . . . . . . . . . . . . . . . . . . . 2 . . . . . Duelist 3 | . . . . . . . . . . . . . . . . . . . . . . . . . . . . 3 . . . . . Protector 2 | . . . . . . . . . . . . . . . . . . . . . . . . . . . . 2 . . . . . Researcher 9 | . . . . . . . . . . . . . . . . . . . . . . . . . . . . 4 . 5 . . . Sentry 16 | . . . 1 . . 1 . . . . . . . . . . . . 1 . . . . . . . . 11 2 . . . . Specialist 3 | . . . . . . . . . . . . . . . . . . . . . . . . . . . . . . 3 . . . Hunter 5 | . . . . . . . . . . . . . . 1 . . . . . . . . . . . . . 2 . . 2 . . Programmer 28 | . . . . . . 1 . 1 . . . . . . . . . . 2 . 3 . 1 . . 3 . 16 . . 1 . . Q-Series 1 | . . . . . . . . . . . . . . . . . . . . . . . . . . . . 1 . . . . . M Guard 2 | . . . . . . . . . . . . . . . . . . . . . . . . . . . . . . . . 2 . Enhanced Grunt 20 | . . . . . . . . . . . . . . . . . . . . . . . . . . . . . . . . . 20 Enhanced Sentry 2 | . . . . . . . . . . . . . . . . . . . . . . . . . . . . . . . . . 2 Enhanced Hunter 8 | . . . . . . . . . . . . . . . . . . . . . . . . . . . . . . . . . 8 Decapitator 4 | . . . . . . . . . . . . . . . . . . . . . . . . . . . . 4 . . . . . Immortal 4 | . . . . . . . . . . . . . . . . . . . . . . . . . . . . 4 . . . . . Combat Programmer 2 | . . . . . . . . . . . . . . . . . . . . . . . . . . . . . . . . 2 . Alpha 7 2 | . . . . . . . . . . . . . . . . . . . . . . . . . . . . 2 . . . . . V-Series 1 | . . . . . . . . . . . . . . . . . . . . . . . . . . . . 1 . . . . . Protovariant P 1 | . . . . . . . . . . . . . . . . . . . . . . . . . . . . . . 1 . . . Artisan 2 | . . . 2 . . . . . . . . . . . . . . . . . . . . . . . . . . . . . . Cobbler 2 | . . . 2 . . . . . . . . . . . . . . . . . . . . . . . . . . . . . . Subdweller 16 | . . . 16 . . . . . . . . . . . . . . . . . . . . . . . . . . . . . . Explorer 1 | . . . . . 1 . . . . . . . . . . . . . . . . . . . . . . . . . . . . Scientist 2 | . . . . . 2 . . . . . . . . . . . . . . . . . . . . . . . . . . . . Scrapoid 1 | . . . . . . . . . . . . . . 1 . . . . . . . . . . . . . . . . . . . Botcube 4 | . . . . . 3 . . . . . . . . . . . . . . . . . . . . 1 . . . . . . . Z-Technician 5 | . . . . . . . . . . 5 . . . . . . . . . . . . . . . . . . . . . . . Z-Light 3 | . . . . . . . . . . 3 . . . . . . . . . . . . . . . . . . . . . . . Decomposer 5 | . . . . . . . . . . . . . . . . . . . . . . 2 3 . . . . . . . . . . Samaritan 1 | . . . . . . . . . . . . . . . . . . . . . . . 1 . . . . . . . . . . Tinkerer 2 | . . . . . . . 1 . . . . . . . . . . . . . . . . . . . . 1 . . . . . Martyr 1 | . . . . . . . . . . . . . 1 . . . . . . . . . . . . . . . . . . . . Best Kill Streak 10 | 3 5 2 3 . . 3 . 1 . 5 . 4 . 2 . 2 . 5 2 . 2 1 1 . 2 2 5 10 3 4 5 5 5 Combat Bots Only 10 | . 5 2 3 . . 2 . 1 . 2 . 1 . 1 . 2 . 4 1 . 1 . 1 . 2 1 5 10 2 3 5 5 5 Max Kills in Single Turn 4 | 1 1 1 1 . 1 1 1 1 . 1 . 1 1 1 . 1 . 1 1 . 1 1 1 . 1 1 1 2 2 1 1 4 2 Gunslinging . | . . . . . . . . . . . . . . . . . . . . . . . . . . . . . . . . . . Exploded 4 | . . . . . . . . . . . . . . . . . . . . . . . . . . . . 2 . . . 4 1 Melee 2 | . . . . . . 1 . 1 . 1 . 1 . 1 . 1 . 1 1 . 1 . 1 . 1 1 1 1 . 1 1 2 2 Uniques/NPCs Destroyed 9 | . . . . . . . . . . 1 . . . . . . . . . . . . . . . . . . . . . 2 6 Z-Imprinter (-6/Deep Caves) MAIN.C Shell (-1/Command) MAIN.C (-1/Command) A8 (-1/Access_0) A6 (-1/Access_0) A4 (-1/Access_0) A2 (-1/Access_0) Architect (-1/Access_0) A3 (-1/Access_0) Combat | -11 -10 -10 -10 -8 -8 -6 -6 -6 -6 -6 -5 -5 -5 -5 -5 -5 -5 -4 -4 -4 -4 -4 -4 -4 -3 -3 -3 -3 -2 -2 -1 -1 -1 -------- Run | Yrd Mat Min Sub Rec Scr Fac Low Low Zio Dee Pro Fac Was Fac Upp Upp War Pro Fac Was Fac Upp Upp Zhi Pro Res Qua Frg Res Tes Acc Com Ac0 Hostile Shots Fired 1929 | . 57 5 159 . . 31 9 15 . 30 2 38 . 12 2 20 5 27 36 . 48 . . . 3 31 154 574 6 56 59 61 489 Missed 795 | . 14 1 48 . . 14 6 11 . 10 . 19 . 2 1 13 2 11 13 . 27 . . . 1 8 62 154 4 21 30 26 297 Intercepted 8 | . . . . . . . . . . . . . . . . . . . . . . . . . . . . . . . . 8 . Deflected 29 | . . . . . . . . . . . . . . . . . . . . . . . . . . . . 24 . 1 . . 4 Hits 1134 | . 43 4 111 . . 17 3 4 . 20 2 19 . 10 1 7 3 16 23 . 21 . . . 2 23 92 420 2 35 29 35 192 Melee 52 | . . . . . . 1 . . . . . . . . . . . . . . . . . . . . . 42 . . . . 9 Projectile 1082 | . 43 4 111 . . 16 3 4 . 20 2 19 . 10 1 7 3 16 23 . 21 . . . 2 23 92 378 2 35 29 35 183 AOE 5 | . . . . . . . . . . . 1 . . . . . . . . . . . . . . . . . . . 1 2 1 Critical Strikes 90 | . . . 2 . . 1 . . . . . . . . . . . . 1 . 2 . . . . 5 9 41 . 6 2 1 20 Actively Blocked 7 | . . . . . . . . . . . . . . . . . . . 1 . 2 . . . . 1 . 3 . . . . . Part Disruptions 11 | . . . . . . . . . . . . 1 . . . . . . . . . . . . . . . 5 . . . 2 3 Actively Blocked 1 | . . . . . . . . . . . . . . . . . . . . . . . . . . . . . . . . . 1 Damage Taken 25470 | . 430 53 1469 . . 238 35 74 . 568 83 343 . 194 24 112 57 240 497 . 432 . 7 . 67 502 2406 10542 46 743 198 1006 5104 Core 2940 | . 111 . 138 . . 56 . 16 . 167 19 61 . 44 . . 21 . 10 . 68 . 7 . 20 90 328 776 . 86 38 31 853 Absorbed by Shields 2013 | . . . . . . . . . . 105 . . . . . . . . . . . . . . . 45 . 11 . 298 177 281 1096 Reduced by Siege Mode 839 | . . . . . . . . . . . . . . . . . . . . . . . . . . . . 839 . . . . . Redirected to Core 52 | . . . . . . . . . . . . . . . . . . . . . . . . . . . 52 . . . . . . Redirected to Shielding 933 | . . . . . . . . . . . . . . . . . . . . . . . . . . 163 32 536 . . . 46 156 Ignored by Resistances 1676 | . . . 61 . . . . . . . . . . . . . . . . . . . . . . . . 834 5 45 360 131 240 Regen/Repaired (Parts) 3368 | . 55 . . . . . . . . . . 24 41 26 . . 7 . . . 22 . . . . . 148 1858 4 320 224 536 103 Core Remaining (%) 59 | 100 . . . . . . . . . . 69 . . . . . . 87 . . . . . . 90 . . 7 . 94 . . 30 Volleys Fired 587 | 10 55 6 159 . 4 . 2 1 7 9 . . . . . 2 3 . 5 . 4 . . . . 6 13 241 4 2 3 12 39 Largest 2 | 2 2 2 2 . 1 . 1 1 1 1 . . . . . 1 1 . 1 . 1 . . . . 1 1 2 1 1 1 1 1 Hottest 360 | 40 40 40 160 . . . . . . 60 . . . . . . . . 90 . 90 . . . . 90 90 280 140 140 140 140 360 Shots Fired 739 | 20 110 12 244 . 4 . 2 1 7 9 . . . . . 2 3 . 5 . 4 . . . . 6 13 237 4 2 3 12 39 Gun 307 | 20 110 12 141 . . . . . . 7 . . . . . . . . . . . . . . . . . 17 . . . . . Cannon 381 | . . . 98 . . . . . . . . . . . . . . . 1 . 4 . . . . 6 1 218 4 2 3 10 34 Launcher 9 | . . . . . . . . . . . . . . . . . . . . . . . . . . . . 2 . . . 2 5 Special 42 | . . . 5 . 4 . 2 1 7 2 . . . . . 2 3 . 4 . . . . . . . 12 . . . . . . Kinetic 270 | 20 110 12 97 . . . . . . . . . . . . . . . . . . . . . . . . . 3 . . . 28 Thermal 275 | . . . 147 . . . . . . . . . . . . . . . . . . . . . . 6 . 102 1 2 3 10 4 Explosive 9 | . . . . . . . . . . . . . . . . . . . . . . . . . . . . 2 . . . 2 5 Electromagnetic 17 | . . . . . . . . . . . . . . . . . . . . . . . . . . . . 17 . . . . . Phasic 131 | . . . . . . . . . . 7 . . . . . . . . 1 . 4 . . . . . 1 116 . . . . 2 Robot Hit Streak 22 | 4 14 12 19 . 2 . . 2 . . . . . . . . . . 1 . 4 . . . . . 5 22 6 . . 7 14 Robot Miss Streak 6 | 3 5 1 4 . 1 . . . . 1 . . . . . . . . . . . . . . . . 2 6 2 . . . 5 Penetration Max 3 | . . . . . . . . . . . . . . . . . . . . . . . . . . . . 3 1 . . . 1 Secondary Targets 1 | . . 1 . . . . . . . . . . . . . . . . . . . . . . . . . . . . . . . Max Gunslinging Chain 1 | . . 1 . . . . . . . . . . . . . . . . . . . . . . . . . . . . . . . Capacitor 45 | . . . . . . . . . . . . . . . . . . . . . . . . . . . . 37 . . . 7 1 Autonomous 12 | . . . . . . . . . . . . . . . . . . . . . . . . . . . . . . . . 2 10 Shots Hit Robots 992 | 10 67 9 146 . 22 14 1 6 1 20 . 27 4 24 . 4 3 10 33 . 11 8 15 . 5 22 21 194 8 38 38 48 183 Core Hits 458 | 5 31 5 49 . 8 4 1 1 . 7 . 8 1 11 . 2 . 5 8 . 5 4 4 . 3 7 6 94 7 17 17 25 123 Critical Kills 36 | . . . 3 . . . . . . . . . . . . . . . . . . . . . . . . 9 3 1 . 2 18 Critical Parts Destroyed 23 | . . . . . 1 . . . . . . . . . . . . . . . . . . . . 2 2 . 1 . . . 17 Critical Strikes 179 | . . . 5 . 2 6 . 1 . . . 2 . . . . . . 3 . 1 . . . . 4 2 86 5 1 1 6 54 Burn 1 | . . . 1 . . . . . . . . . . . . . . . . . . . . . . . . . . . . . . Meltdown 13 | . . . 1 . . . . . . . . . . . . . . . . . . . . . . . . 9 . 1 . 2 . Destroy 48 | . . . 3 . . . . . . . . . . . . . . . . . . . . . . . . . 5 . . . 40 Corrupt 1 | . . . . . . . . . . . . . . . . . . . . . . . . . . . . 1 . . . . . Smash 6 | . . . . . 2 . . . . . . . . . . . . . . . . . . . . 2 2 . . . . . . Sever 2 | . . . . . . . . . . . . . . . . . . . . . . . . . . . . 1 . . 1 . . Impale 1 | . . . . . . . . 1 . . . . . . . . . . . . . . . . . . . . . . . . . Phase 77 | . . . . . . . . . . . . . . . . . . . 1 . 1 . . . . . . 75 . . . . . Melee Attacks 801 | . . . 32 . 19 17 5 8 2 25 . 33 4 31 3 5 3 14 39 . 23 8 15 . 7 25 39 103 7 67 51 56 160 Impact 30 | . . . . . 19 . . . . . . . . . . . . . . . . . . . . 2 9 . . . . . . Slashing 726 | . . . 6 . . 17 1 2 . 25 . 33 4 30 3 5 1 14 36 . 22 8 15 . 7 23 30 103 7 67 51 56 160 Piercing 36 | . . . 26 . . . 4 5 1 . . . . . . . . . . . . . . . . . . . . . . . . Sneak Attacks 138 | . . . 3 . 19 5 1 1 1 5 . 12 4 9 . . 2 1 8 . 2 4 5 . . 3 4 12 3 6 6 2 20 Combat Hostiles 7 | . . . . . . . . . . . . 1 . . . . . . . . . . . . . . . . . . . . 6 Follow-up Attacks 40 | . . . . . . . . 2 . . . . . . . . . . . . . . . . . 2 3 6 . 7 10 . 10 Martial Strikes 25 | . . . . . . . . . . . . . . . . . . . . . . . . . . . . 2 . 5 1 4 13 Damage Inflicted 57616 | 109 802 124 2986 . 1103 760 74 151 . 1320 . 1909 379 1471 . 178 39 491 1687 . 539 684 1141 . 418 1083 969 14728 562 2789 2450 5614 13056 Guns 2576 | 109 802 124 1333 . . . . . . . . . . . . . . . . . . . . . . . . 208 . . . . . Cannons 15028 | . . . 1422 . . . . . . . . . . . . . . . 40 . 120 . . . . . . 10337 42 66 . 919 2082 Explosions 4780 | . . . . . . . . . . . . . . . . . . . . . . . . . . . . 541 . . . 1878 2361 Melee 35214 | . . . 213 . 1103 760 74 151 . 1320 . 1909 379 1471 . 178 39 491 1647 . 419 684 1141 . 418 1083 969 3642 520 2723 2450 2817 8613 Ramming . | . . . . . . . . . . . . . . . . . . . . . . . . . . . . . . . . . . Kinetic 2146 | 109 802 124 738 . . . . . . . . . . . . . . . . . . . . . . . . . 42 . . . 331 Thermal 10970 | . . . 2035 . . . . . . . . . . . . . . . . . . . . . . . . 6457 . 66 . 1331 1081 Explosive 3986 | . . . . . . . . . . . . . . . . . . . . . . . . . . . . 541 . . . 1310 2135 Electromagnetic 208 | . . . . . . . . . . . . . . . . . . . . . . . . . . . . 208 . . . . . Impact 1545 | . . . . . 1103 . . . . . . . . . . . . . . . . . . . . 87 355 . . . . . . Slashing 33527 | . . . 213 . . 760 . 83 . 1320 . 1909 379 1471 . 178 39 491 1647 . 419 684 1141 . 418 996 614 3642 520 2723 2450 2817 8613 Piercing 142 | . . . . . . . 74 68 . . . . . . . . . . . . . . . . . . . . . . . . . Phasic 5092 | . . . . . . . . . . . . . . . . . . . 40 . 120 . . . . . . 3880 . . . 156 896 Highest Corruption 75 | . . . . . . . . . . . . . . . . . . . . 9 11 11 11 11 11 5 42 75 . . . 6 1 Average Corruption 28 | . . . . . . . . . . . . . . . . . . . . 9 9 11 11 11 11 3 23 61 . . . 5 1 Corruption Purged 11 | . . . . . . . . . . . . . . . . . . . . . . . . . . . 5 . . . . 6 . Corruption Blocked 19 | . . . . . . . . . . . . . . . . . . . . . . . . . . . 1 . . 12 . 6 . Effects 471 | . . . . . . . . . . . . . . . . . . . . 1 37 56 31 4 23 9 19 273 . . . 11 7 Message Errors 114 | . . . . . . . . . . . . . . . . . . . . 1 7 12 9 2 8 2 7 64 . . . 1 1 Matter Fused 101 | . . . . . . . . . . . . . . . . . . . . . 7 17 8 . 6 1 1 54 . . . 4 3 Heat Flow Errors 42 | . . . . . . . . . . . . . . . . . . . . . 9 6 2 . 2 2 2 18 . . . 1 . Energy Discharges 50 | . . . . . . . . . . . . . . . . . . . . . 6 7 3 1 1 2 3 24 . . . 2 1 Parts Rejected 8 | . . . . . . . . . . . . . . . . . . . . . . . . . . . 1 7 . . . . . Parts Fused 1 | . . . . . . . . . . . . . . . . . . . . . . . . . . . . . . . . . 1 Data Loss (minor) 61 | . . . . . . . . . . . . . . . . . . . . . 5 7 6 1 5 2 3 28 . . . 3 1 Data Loss (major) 14 | . . . . . . . . . . . . . . . . . . . . . . 6 1 . . . 1 6 . . . . . Misfires 4 | . . . . . . . . . . . . . . . . . . . . . . . . . . . . 4 . . . . . Alerts 8 | . . . . . . . . . . . . . . . . . . . . . 1 1 2 . . . . 4 . . . . . Misdirections 36 | . . . . . . . . . . . . . . . . . . . . . 2 . . . 1 . 1 32 . . . . . Weapon Failures 32 | . . . . . . . . . . . . . . . . . . . . . . . . . . . . 32 . . . . . Overload Shots 2 | . . . . . . . . . . . . . . . . . . . . . . . . . . . . . . . . . 2 Overflow Damage 6019 | . . . 95 . 161 96 . 20 . 228 . 523 23 181 . 18 . 86 255 . 50 270 511 . 106 189 268 1390 235 250 79 637 348 Projectiles 773 | . . . 28 . 23 . . . . . . . . . . . . . 5 . . . . . . . . 668 . . . . 49 Explosions 528 | . . . . . . . . . . . . . . . . . . . . . . . . . . . . 27 . . . 441 60 Melee 4718 | . . . 67 . 138 96 . 20 . 228 . 523 23 181 . 18 . 86 250 . 50 270 511 . 106 189 268 695 235 250 79 196 239 Knockbacks 28 | . . . . . 14 . . . . . . . . . . . . . . . . . . . . . . . . . . . 14 Impact 7 | . . . . . 7 . . . . . . . . . . . . . . . . . . . . . . . . . . . . Kinetic 14 | . . . . . . . . . . . . . . . . . . . . . . . . . . . . . . . . . 14 Secondary 7 | . . . . . 7 . . . . . . . . . . . . . . . . . . . . . . . . . . . . Self-Inflicted Damage 147 | . . . . . . . . . . . . . . . . . . . . . . . . . . . . 147 . . . . . Shots 2 | . . . . . . . . . . . . . . . . . . . . . . . . . . . . 2 . . . . . Rammed 2 | . 1 . . . . 1 . . . . . . . . . . . . . . . . . . . . . . . . . . . Targets Rammed 2 | . 1 . . . . 1 . . . . . . . . . . . . . . . . . . . . . . . . . . . Kicked . | . . . . . . . . . . . . . . . . . . . . . . . . . . . . . . . . . . Crushed . | . . . . . . . . . . . . . . . . . . . . . . . . . . . . . . . . . . Highest Temperature 295 | . 12 18 295 . . . . 6 . 84 . 19 . . 3 . 7 . 40 . 268 231 103 . 256 232 168 249 70 80 160 223 203 Average Temperature 58 | . 5 9 64 . . . . 6 . 41 . 11 . . 3 . 4 . 19 . 85 95 52 . 126 102 25 48 36 37 70 85 105 Received Heat Transfer 2440 | . 141 30 700 . . 30 . 27 . 120 12 45 . . 9 . 18 . 45 . 18 . . . . . . 944 9 18 37 22 215 Thermoelectric Energy+ 204 | . . . . . . . . . . . . . . . . . . . . . . . . . . . . . . . . 34 170 Effects 2 | . . . . . . . . . . . . . . . . . . . . . 2 . . . . . . . . . . . . Interference 2 | . . . . . . . . . . . . . . . . . . . . . 2 . . . . . . . . . . . . Siege Activations 11 | . . . . . . . . . . . . . . . . . . . . . . . . . . . . 11 . . . . . Total Turns 185 | . . . . . . . . . . . . . . . . . . . . . . . . . . . . 185 . . . . . Longest Duration 46 | . . . . . . . . . . . . . . . . . . . . . . . . . . . . 46 . . . . . Martial Activations . | . . . . . . . . . . . . . . . . . . . . . . . . . . . . . . . . . . Shielding Activations . | . . . . . . . . . . . . . . . . . . . . . . . . . . . . . . . . . . Robots Disrupted 6 | . . . . . . . . . . . . . . . . . . . 1 . . . . . . . . . 1 1 . 1 2 Combat Hostiles 5 | . . . . . . . . . . . . . . . . . . . 1 . . . . . . . . . . 1 . 1 2 Robots Corrupted 4 | . . . . . 2 . . . . . . . . . . . . . . . . . . . . . . 2 . . . . . Combat Hostiles 2 | . . . . . . . . . . . . . . . . . . . . . . . . . . . . 2 . . . . . Parts Fried 9 | . . . . . 2 . . . . . . . . . . . . . . . . . . . . . 1 6 . . . . . Impact Corruptions 17 | . . . . . 11 . . . . . . . . . . . . . . . . . . . . 3 3 . . . . . . Robots Melted 13 | . . . 1 . . . . . . . . . . . . . . . . . . . . . . . . 9 . 1 . 2 . Combat Hostiles 11 | . . . 1 . . . . . . . . . . . . . . . . . . . . . . . . 8 . . . 2 . Parts Melted 32 | . . . 3 . . . . . . . . . . . . . . . . . . . . . . . . 18 . 6 . 5 . Heat Transferred 7457 | . . . 2943 . . . . . . . . . . . . . . . . . . . . . . . . 3925 . 50 . 457 82 Parts Sabotaged . | . . . . . . . . . . . . . . . . . . . . . . . . . . . . . . . . . . Parts Stolen . | . . . . . . . . . . . . . . . . . . . . . . . . . . . . . . . . . . Parts Stripped 30 | . . . . . . . . . . . . . . . . . . . . . . . . . . . . . . . . . 30 Power Chain Reactions . | . . . . . . . . . . . . . . . . . . . . . . . . . . . . . . . . . . Alert | -11 -10 -10 -10 -8 -8 -6 -6 -6 -6 -6 -5 -5 -5 -5 -5 -5 -5 -4 -4 -4 -4 -4 -4 -4 -3 -3 -3 -3 -2 -2 -1 -1 -1 ------- Run | Yrd Mat Min Sub Rec Scr Fac Low Low Zio Dee Pro Fac Was Fac Upp Upp War Pro Fac Was Fac Upp Upp Zhi Pro Res Qua Frg Res Tes Acc Com Ac0 Maximum Alert Level 5 | . . . . . . . . . . . . 2 . 1 . . . . . . 4 . . . . 1 1 5 4 3 3 3 . Low Security (%) 52 | 100 100 100 . 100 . 100 . . . . . 19 100 88 . . . . 100 100 53 . . . . 77 93 9 . . . . . Level 1 5 | . . . . . . . . . . . . 41 . 11 . . . . . . . . . . . 22 6 4 . . . . . Level 2 13 | . . . . . . . . . . . . 39 . . . . . . . . 27 . . . . . . 22 . 2 90 22 . Level 3 15 | . . . . . . . . . . . . . . . . . . . . . 12 . . . . . . 21 . 97 9 77 . Level 4 7 | . . . . . . . . . . . . . . . . . . . . . 4 . . . . . . 24 100 . . . . Level 5 4 | . . . . . . . . . . . . . . . . . . . . . . . . . . . . 17 . . . . . High Security . | . . . . . . . . . . . . . . . . . . . . . . . . . . . . . . . . . . Max Security . | . . . . . . . . . . . . . . . . . . . . . . . . . . . . . . . . . . Peak Influence 1986 | 10 155 95 . 47 . 87 . . . . . 666 110 274 . . . . 55 19 1138 . . . . 251 257 1986 1213 922 711 545 . Initial 1116 | . . 45 . 47 . . . . . . . 157 72 . . . . . . 19 . . . . . 227 149 . 1116 681 548 454 . Average 411 | 1 52 21 . 18 . 9 . . . . . 382 14 127 . . . . 13 12 373 . . . . 172 56 977 1167 824 630 496 . Influence Increases 11650 | 15 391 50 360 30 . 137 45 180 . . 120 1137 58 884 15 175 165 110 304 . 1520 15 55 . 223 535 447 2947 157 424 283 393 475 Destroy 0b10 Robot/C 4040 | . 200 40 220 . . 40 . 20 . . . 280 . 200 . 60 . 80 60 . 380 . 20 . 160 140 100 1400 40 240 140 220 . Destroy 0b10 Robot/NC 510 | 15 40 . . . . 15 . . . . . 80 . 55 . . . 5 30 . 55 15 25 . 20 5 15 80 5 15 20 15 . Destroy Leader 660 | . 50 10 20 . . 20 . 10 . . . 56 . 64 . 10 . 10 24 . 86 . 10 . 10 30 14 170 22 2 32 10 . Allied During Kill 520 | . . . . . . . . . . . . 239 . 157 . . . . . . 57 . . . 18 10 . . . 24 . 15 . Trap Triggered on 0b10 130 | . . . . . . . . . . . . . . 70 . . . . . . . . . . . 20 40 . . . . . . Successful Hack 368 | . 24 . . . . 45 . . . . . 48 . 43 . . . . 15 . 9 . . . . . 35 51 48 26 . 24 . Select Force Hacks 30 | . . . . 30 . . . . . . . . . . . . . . . . . . . . . . . . . . . . . Disable Machine 1590 | . . . . . . . . . . . . 120 . 225 . . . . 45 . 420 . . . . 15 135 300 . 90 30 45 165 Anti-Garrison Action 150 | . . . . . . . . . . . . . . . . . . . . . . . . . . . . 150 . . . . . Destroy Structure 1387 | . 2 . . . . 2 . . . . . 134 58 10 . . . . 10 . 318 . . . . 30 18 406 12 27 31 64 265 Advance Influence 300 | . . . . . . . . . . . . 150 . . . . . . . . . . . . . 150 . . . . . . . Partial Spotted 405 | . . . . . . . . . . . . 30 . 30 . . . . 75 . 45 . . . . 30 30 60 30 . 30 . 45 Lose Combat Pursuer 1560 | . 75 . 120 . . 15 45 150 . . 120 . . 30 15 105 165 15 45 . 150 . . . 15 105 60 330 . . . . . Influence Decreases 11345 | 15 274 167 261 129 . 70 112 180 . . 107 942 266 806 93 115 172 163 249 55 418 968 204 . 108 384 713 961 930 722 487 357 917 Entered New Map 3837 | . . 72 . 52 . . 26 . . . . 6 136 . 30 . 60 53 . 36 . 409 29 . . 38 117 . 870 532 367 257 747 Time Decay 5672 | 15 274 95 242 77 . 60 86 180 . . 107 356 130 506 63 115 112 110 233 10 328 559 175 . 108 286 314 741 60 170 120 40 . Lost Part 505 | . . . 19 . . . . . . . . . . 20 . . . . 16 . 30 . . . . 40 30 220 . . . 20 110 Lost Ally 789 | . . . . . . 10 . . . . . 280 . 280 . . . . . 9 60 . . . . 20 10 . . 20 . 40 60 Purge Threat 542 | . . . . . . . . . . . . 300 . . . . . . . . . . . . . . 242 . . . . . . Squads Dispatched 68 | . 1 . . . . 1 . . . . . 6 . 9 . . . . 7 . 8 . . . . 3 4 17 2 4 4 2 . Investigation 21 | . . . . . . . . . . . . 4 . 4 . . . . 5 . 5 . . . . 1 . 1 1 . . . . Extermination 27 | . . . . . . . . . . . . 1 . 4 . . . . 2 . 3 . . . . 2 4 7 . 2 1 1 . Reinforcement 10 | . 1 . . . . 1 . . . . . 1 . 1 . . . . . . . . . . . . . 1 . 2 3 . . Assault 9 | . . . . . . . . . . . . . . . . . . . . . . . . . . . . 8 . . . 1 . Garrison 1 | . . . . . . . . . . . . . . . . . . . . . . . . . . . . . 1 . . . . Intercept . | . . . . . . . . . . . . . . . . . . . . . . . . . . . . . . . . . . Searches Triggered . | . . . . . . . . . . . . . . . . . . . . . . . . . . . . . . . . . . Unchained Authorized 2 | . . . . . . . . . . . . . . . . . . . . . . . . . . . 1 . . . 1 . . Construction Impeded . | . . . . . . . . . . . . . . . . . . . . . . . . . . . . . . . . . . Haulers Reinforced 1 | . . . . . . . . . . . . . . . . . . . . . . . . . . . . . . . 1 . . Active Scanning Responses . | . . . . . . . . . . . . . . . . . . . . . . . . . . . . . . . . . . Cargo Convoy Interrupts 3 | . . . . . . . . . . . . 1 . 1 . . . . . . 1 . . . . . . . . . . . . Stealth | -11 -10 -10 -10 -8 -8 -6 -6 -6 -6 -6 -5 -5 -5 -5 -5 -5 -5 -4 -4 -4 -4 -4 -4 -4 -3 -3 -3 -3 -2 -2 -1 -1 -1 --------- Run | Yrd Mat Min Sub Rec Scr Fac Low Low Zio Dee Pro Fac Was Fac Upp Upp War Pro Fac Was Fac Upp Upp Zhi Pro Res Qua Frg Res Tes Acc Com Ac0 Distress Signals 39 | . 1 . . . . 2 1 . . . 1 4 . 1 . . . . 1 . 5 . . . . 1 . 2 . 2 . 18 . Communications Jammed . | . . . . . . . . . . . . . . . . . . . . . . . . . . . . . . . . . . Distress Signals . | . . . . . . . . . . . . . . . . . . . . . . . . . . . . . . . . . . Times Spotted 499 | . 21 2 38 . . 10 3 10 . 7 8 26 6 16 1 10 21 6 19 5 32 . 1 . 5 9 27 93 6 17 10 17 73 Peak Tracking Total 14 | . 4 2 4 . . 4 3 5 . 3 6 14 6 3 1 5 8 4 9 5 10 . 1 . 5 8 7 10 3 5 6 5 10 Tactical Retreats 53 | . 4 . 5 . . 1 1 6 . . 3 . . 2 1 2 4 1 1 . 7 . . . 1 3 1 10 . . . . . Traps | -11 -10 -10 -10 -8 -8 -6 -6 -6 -6 -6 -5 -5 -5 -5 -5 -5 -5 -4 -4 -4 -4 -4 -4 -4 -3 -3 -3 -3 -2 -2 -1 -1 -1 ------- Run | Yrd Mat Min Sub Rec Scr Fac Low Low Zio Dee Pro Fac Was Fac Upp Upp War Pro Fac Was Fac Upp Upp Zhi Pro Res Qua Frg Res Tes Acc Com Ac0 Traps Triggered 26 | . . . 1 . . . . . . . . 2 . 1 . . . . 2 . 3 . . . . 3 . 11 . 1 1 1 . Indirectly . | . . . . . . . . . . . . . . . . . . . . . . . . . . . . . . . . . . Trap Hack Attempts . | . . . . . . . . . . . . . . . . . . . . . . . . . . . . . . . . . . Triggered . | . . . . . . . . . . . . . . . . . . . . . . . . . . . . . . . . . . Disarmed . | . . . . . . . . . . . . . . . . . . . . . . . . . . . . . . . . . . Reprogrammed 6 | . . . . . . . . . . . . . . . . . . . . . . . . . . . 6 . . . . . . Reused 15 | . . . . . . . . . . . . . . 7 . . . . . . . . . . . 2 6 . . . . . . Traps Reconfigurated 18 | . . . . . . . . . . . . 4 . 14 . . . . . . . . . . . . . . . . . . . Traps Extracted 7 | . . . . . . . . . . . . 4 . 2 . . . . . . . . . . . 1 . . . . . . . Installed 14 | . . . 5 . . . . . . . . . . 6 . . . . . . . . . . . 3 . . . . . . . Triggered 13 | . . . . . . . . . . . . . . 7 . . . . . . . . . . . 2 4 . . . . . . Most Traps Carried 7 | . . . . . 3 . . . . . . 4 4 6 . . . 3 3 3 3 7 7 6 6 6 4 . . . . . . Machines | -11 -10 -10 -10 -8 -8 -6 -6 -6 -6 -6 -5 -5 -5 -5 -5 -5 -5 -4 -4 -4 -4 -4 -4 -4 -3 -3 -3 -3 -2 -2 -1 -1 -1 ---------- Run | Yrd Mat Min Sub Rec Scr Fac Low Low Zio Dee Pro Fac Was Fac Upp Upp War Pro Fac Was Fac Upp Upp Zhi Pro Res Qua Frg Res Tes Acc Com Ac0 Machines Disabled 122 | . . . 2 . . . 1 . . . . 8 . 15 . . . . 3 . 28 . . . . 1 9 33 . 6 2 3 11 Max in Single Turn 2 | . . . 1 . . . 1 . . . . 1 . . . . . . 2 . . . . . . . 2 2 . 1 1 1 1 Garrison Access 7 | . . . . . . 1 . . . . . 2 . 1 . . . . . . 2 . . . . . . 1 . . . . . Machines Repaired 1 | . . . . . . . . . . . . . . . . . . . 1 . . . . . . . . . . . . . . Machines Dismantled . | . . . . . . . . . . . . . . . . . . . . . . . . . . . . . . . . . . Machines Sabotaged . | . . . . . . . . . . . . . . . . . . . . . . . . . . . . . . . . . . Overloaded Fab Kills . | . . . . . . . . . . . . . . . . . . . . . . . . . . . . . . . . . . Hacking | -11 -10 -10 -10 -8 -8 -6 -6 -6 -6 -6 -5 -5 -5 -5 -5 -5 -5 -4 -4 -4 -4 -4 -4 -4 -3 -3 -3 -3 -2 -2 -1 -1 -1 --------- Run | Yrd Mat Min Sub Rec Scr Fac Low Low Zio Dee Pro Fac Was Fac Upp Upp War Pro Fac Was Fac Upp Upp Zhi Pro Res Qua Frg Res Tes Acc Com Ac0 Machines Accessed 144 | . 9 1 3 3 3 8 1 2 . . . 14 . 21 3 . 2 . 13 . 15 . 1 4 . 1 12 9 6 7 4 1 1 Terminals 71 | . 7 1 . 1 . 5 . . . . . 5 . 10 1 . . . 8 . 5 . 1 . . . 9 7 2 5 3 1 . Fabricators 9 | . . . . . . 1 . . . . . 1 . 1 . . . . 1 . 2 . . . . . . . 1 1 1 . . Repair Stations 5 | . 1 . . . . . . . . . . 1 . 1 . . . . . . 1 . . . . . 1 . . . . . . Recycling Units 23 | . 1 . . 2 . . . . . . . 4 . 5 . . . . 4 . 5 . . . . 1 . . 1 . . . . Scanalyzers 9 | . . . . . . 1 . . . . . 1 . 2 . . . . . . . . . . . . 2 1 1 1 . . . Garrison Access 9 | . . . . . . 1 . . . . . 2 . 2 . . . . . . 2 . . . . . . 1 1 . . . . Total Hacks 412 | . 25 2 3 12 19 19 1 2 . . . 43 . 72 11 . 2 . 36 . 43 . 1 16 . 3 36 19 10 12 6 3 16 Successful 284 | . 8 1 3 2 19 15 1 2 . . . 25 . 53 11 . 2 . 28 . 36 . 1 16 . 2 29 8 2 3 . 1 16 Failed 126 | . 17 1 . 10 . 3 . . . . . 18 . 19 . . . . 8 . 7 . . . . 1 6 11 8 9 6 2 . Catastrophic 20 | . . . . 1 . 1 . . . . . 2 . 1 . . . . 1 . 1 . . . . . . 5 2 4 2 . . Database Lockouts 2 | . . . . . . 1 . . . . . . . . . . . . . . . . . . . . 1 . . . . . . Manual 160 | . 9 2 . 6 . 6 1 . . . . 20 . 35 . . . . 19 . 23 . . . . 2 18 11 3 3 2 . . Terminals 200 | . 17 2 . 2 . 12 . . . . . 21 . 30 6 . . . 24 . 20 . 1 . . . 29 14 5 9 5 3 . Fabricators 22 | . . . . . . 1 . . . . . 3 . 5 . . . . 4 . 6 . . . . . . . 1 1 1 . . Repair Stations 16 | . 6 . . . . . . . . . . 4 . 2 . . . . . . 2 . . . . . 2 . . . . . . Recycling Units 61 | . 2 . . 10 . . . . . . . 7 . 17 . . . . 8 . 13 . . . . 3 . . 1 . . . . Scanalyzers 31 | . . . . . . 4 . . . . . 3 . 12 . . . . . . . . . . . . 5 4 1 2 . . . Garrison Access 18 | . . . . . . 2 . . . . . 5 . 6 . . . . . . 2 . . . . . . 1 2 . . . . Terminal Hacks 133 | . 4 1 3 . 19 5 1 2 . . . 5 . 13 11 . 2 . 10 . 6 . 1 16 . . 12 4 1 . . 1 16 Record 50 | . . . . . 17 . . 1 . . . . . . 10 . . . . . . . 1 5 . . . . . . . . 16 Part Schematic 15 | . 1 . . . . 1 . . . . . . . 4 . . . . 2 . 2 . . 3 . . 2 . . . . . . Robot Schematic 2 | . . 1 . . . . . . . . . . . . . . . . . . . . . . . . 1 . . . . . . Robot Analysis 5 | . 1 . . . . . . . . . . . . . . . . . . . . . . 4 . . . . . . . . . Prototype ID Bank 4 | . . . . . . . . . . . . . . . . . . . . . . . . 4 . . . . . . . . . Open Door 8 | . . . 1 . 1 . 1 1 . . . . . . 1 . 2 . 1 . . . . . . . . . . . . . . Level Access Points 1 | . . . . . . . . . . . . . . 1 . . . . . . . . . . . . . . . . . . . Branch Access Points 2 | . . . . . . 1 . . . . . . . . . . . . . . 1 . . . . . . . . . . . . Machine Index 4 | . . . . . . . . . . . . . . 1 . . . . 1 . 1 . . . . . 1 . . . . . . Terminal Index 4 | . . . . . . 1 . . . . . . . 1 . . . . . . . . . . . . 1 1 . . . . . Fabricator Index 2 | . . . . . . . . . . . . 1 . . . . . . 1 . . . . . . . . . . . . . . Unreport Threat 4 | . . . . . . . . . . . . 2 . . . . . . . . . . . . . . 2 . . . . . . Locate Traps 10 | . 2 . . . . 1 . . . . . 1 . 1 . . . . 2 . . . . . . . 1 1 . . . 1 . Reprogram Traps 1 | . . . . . . . . . . . . . . . . . . . . . . . . . . . 1 . . . . . . Recall Investigation 2 | . . . . . . . . . . . . . . 1 . . . . 1 . . . . . . . . . . . . . . Recall Extermination 5 | . . . . . . . . . . . . . . 2 . . . . 1 . . . . . . . 2 . . . . . . Registered Components 2 | . . . . . . . . . . . . 1 . . . . . . . . 1 . . . . . . . . . . . . Registered Prototypes 2 | . . . . . . . . . . . . . . 1 . . . . 1 . . . . . . . . . . . . . . Zone Layout 6 | . . . . . . 1 . . . . . . . 1 . . . . . . 1 . . . . . 1 1 1 . . . . Proto ID Catalog 3 | . . . 1 . 1 . . . . . . . . . . . . . . . . . . . . . . 1 . . . . . Release Object 1 | . . . 1 . . . . . . . . . . . . . . . . . . . . . . . . . . . . . . Fabricator Hacks 10 | . . . . . . . . . . . . 1 . 2 . . . . 3 . 4 . . . . . . . . . . . . Network Status 4 | . . . . . . . . . . . . 1 . 1 . . . . 1 . 1 . . . . . . . . . . . . Load Schematic 3 | . . . . . . . . . . . . . . 1 . . . . 1 . 1 . . . . . . . . . . . . Build 3 | . . . . . . . . . . . . . . . . . . . 1 . 2 . . . . . . . . . . . . Repair Station Hacks 13 | . 4 . . . . . . . . . . 4 . 2 . . . . . . 2 . . . . . 1 . . . . . . Scan Component 6 | . 2 . . . . . . . . . . 2 . 1 . . . . . . 1 . . . . . . . . . . . . Repair 6 | . 2 . . . . . . . . . . 2 . 1 . . . . . . 1 . . . . . . . . . . . . Refit 1 | . . . . . . . . . . . . . . . . . . . . . . . . . . . 1 . . . . . . Recycling Unit Hacks 21 | . . . . 1 . . . . . . . 2 . 5 . . . . 4 . 8 . . . . 1 . . . . . . . Report Inventory 16 | . . . . . . . . . . . . 2 . 4 . . . . 4 . 6 . . . . . . . . . . . . Retrieve Components 5 | . . . . 1 . . . . . . . . . 1 . . . . . . 2 . . . . 1 . . . . . . . Scanalyzer 22 | . . . . . . 3 . . . . . 1 . 11 . . . . . . . . . . . . 4 1 1 1 . . . Insert Component 8 | . . . . . . 1 . . . . . 1 . 3 . . . . . . . . . . . . 2 . . 1 . . . Analyze 6 | . . . . . . . . . . . . . . 6 . . . . . . . . . . . . . . . . . . . Retrieve Study 8 | . . . . . . 2 . . . . . . . 2 . . . . . . . . . . . . 2 1 1 . . . . Garrison Access Hacks 6 | . . . . . . 1 . . . . . 2 . 1 . . . . . . 2 . . . . . . . . . . . . Seal Access 6 | . . . . . . 1 . . . . . 2 . 1 . . . . . . 2 . . . . . . . . . . . . Unauthorized Hacks 79 | . . . . 1 . 6 . . . . . 10 . 19 . . . . 11 . 14 . . . . 1 12 3 . 2 . . . Terminals 44 | . . . . . . 6 . . . . . 5 . 4 . . . . 6 . 8 . . . . . 11 3 . 1 . . . Track 4 | . . . . . . 1 . . . . . 1 . . . . . . . . . . . . . . 1 1 . . . . . Assimilate 11 | . . . . . . 2 . . . . . 2 . 2 . . . . 2 . . . . . . . 2 . . 1 . . . Botnet 12 | . . . . . . 1 . . . . . 1 . 2 . . . . 1 . 3 . . . . . 2 2 . . . . . Disrupt 2 | . . . . . . 1 . . . . . . . . . . . . . . . . . . . . 1 . . . . . . Operators 4 | . . . . . . 1 . . . . . 1 . . . . . . 1 . 1 . . . . . . . . . . . . Skim 11 | . . . . . . . . . . . . . . . . . . . 2 . 4 . . . . . 5 . . . . . . Fabricators 5 | . . . . . . . . . . . . 1 . 1 . . . . 1 . 2 . . . . . . . . . . . . Prioritize 2 | . . . . . . . . . . . . . . . . . . . 1 . 1 . . . . . . . . . . . . Haulers 2 | . . . . . . . . . . . . 1 . . . . . . . . 1 . . . . . . . . . . . . Recompile 1 | . . . . . . . . . . . . . . 1 . . . . . . . . . . . . . . . . . . . Repair Stations . | . . . . . . . . . . . . . . . . . . . . . . . . . . . . . . . . . . Recycling Units 24 | . . . . 1 . . . . . . . 4 . 10 . . . . 4 . 4 . . . . 1 . . . . . . . Monitor 1 | . . . . . . . . . . . . . . 1 . . . . . . . . . . . . . . . . . . . Reject 3 | . . . . . . . . . . . . . . 3 . . . . . . . . . . . . . . . . . . . Recyclers 1 | . . . . . . . . . . . . . . 1 . . . . . . . . . . . . . . . . . . . Mask 3 | . . . . . . . . . . . . . . 3 . . . . . . . . . . . . . . . . . . . Tunnel 1 | . . . . 1 . . . . . . . . . . . . . . . . . . . . . . . . . . . . . Fedlink 6 | . . . . . . . . . . . . . . 1 . . . . 4 . 1 . . . . . . . . . . . . Scrapoids 5 | . . . . . . . . . . . . 4 . 1 . . . . . . . . . . . . . . . . . . . Scraphulk 4 | . . . . . . . . . . . . . . . . . . . . . 3 . . . . 1 . . . . . . . Scanalyzers 2 | . . . . . . . . . . . . . . . . . . . . . . . . . . . 1 . . 1 . . . Researchers 2 | . . . . . . . . . . . . . . . . . . . . . . . . . . . 1 . . 1 . . . Garrison Access 4 | . . . . . . . . . . . . . . 4 . . . . . . . . . . . . . . . . . . . Broadcast 1 | . . . . . . . . . . . . . . 1 . . . . . . . . . . . . . . . . . . . Reprogram 1 | . . . . . . . . . . . . . . 1 . . . . . . . . . . . . . . . . . . . Intercept 1 | . . . . . . . . . . . . . . 1 . . . . . . . . . . . . . . . . . . . Watchers 1 | . . . . . . . . . . . . . . 1 . . . . . . . . . . . . . . . . . . . Data Cores Recovered 6 | . . . . . . . . . . . . . . 3 . . . . 1 . 1 . . . . . . . . . . 1 . Used 3 | . . . . . . . . . . . . . . 1 . . . . 1 . 1 . . . . . . . . . . . . Hacking Detections 90 | . 9 1 . 2 . 8 . . . . . 7 . 15 1 . . . 6 . 8 . . . . . 7 8 6 7 4 1 . Full Trace Events 6 | . . . . 1 . . . . . . . . . 1 . . . . 1 . 1 . . . . . . 1 1 . . . . Feedback Events . | . . . . . . . . . . . . . . . . . . . . . . . . . . . . . . . . . . Feedback Blocked . | . . . . . . . . . . . . . . . . . . . . . . . . . . . . . . . . . . Robot Schematics Acquired 10 | . . 1 . . . . . . 4 . . . . . . . . . . . . . . . . . 1 1 . 3 . . . Robots Built . | . . . . . . . . . . . . . . . . . . . . . . . . . . . . . . . . . . Authchips . | . . . . . . . . . . . . . . . . . . . . . . . . . . . . . . . . . . Time . | . . . . . . . . . . . . . . . . . . . . . . . . . . . . . . . . . . Total Robot Build Rating . | . . . . . . . . . . . . . . . . . . . . . . . . . . . . . . . . . . Part Schematics Acquired 113 | . 1 . . . 16 5 2 7 14 2 . 7 5 11 2 . 2 1 4 . 7 . . 3 . . 2 10 . 12 . . . Parts Built 3 | . . . . . . . . . . . . . . . . . . . 1 . 2 . . . . . . . . . . . . Authchips 1 | . . . . . . . . . . . . . . . . . . . 1 . . . . . . . . . . . . . . Time 400 | . . . . . . . . . . . . . . . . . . . 120 . 280 . . . . . . . . . . . . Total Part Build Rating 26 | . . . . . . . . . . . . . . . . . . . 10 . 16 . . . . . . . . . . . . Part Studies Acquired 8 | . . . . . . 2 . . . . . . . 2 . . . . . . . . . . . . 2 1 1 . . . . Parts Repaired 6 | . 2 . . . . . . . . . . 2 . 1 . . . . . . 1 . . . . . . . . . . . . Time 240 | . 52 . . . . . . . . . . 94 . 60 . . . . . . 34 . . . . . . . . . . . . Parts Recycled . | . . . . . . . . . . . . . . . . . . . . . . . . . . . . . . . . . . Recycled Matter . | . . . . . . . . . . . . . . . . . . . . . . . . . . . . . . . . . . Retrieved Matter . | . . . . . . . . . . . . . . . . . . . . . . . . . . . . . . . . . . Retrieved Components 7 | . . . . . . . . . . . . . . 1 . . . . . . 5 . . . . 1 . . . . . . . Parts Scanalyzed 3 | . . . . . . . . . . . . . . 3 . . . . . . . . . . . . . . . . . . . Part Schematics Acquired 3 | . . . . . . . . . . . . . . 3 . . . . . . . . . . . . . . . . . . . Parts Damaged 1 | . . . . . . . . . . . . . . 1 . . . . . . . . . . . . . . . . . . . Bothacking | -11 -10 -10 -10 -8 -8 -6 -6 -6 -6 -6 -5 -5 -5 -5 -5 -5 -5 -4 -4 -4 -4 -4 -4 -4 -3 -3 -3 -3 -2 -2 -1 -1 -1 ------------ Run | Yrd Mat Min Sub Rec Scr Fac Low Low Zio Dee Pro Fac Was Fac Upp Upp War Pro Fac Was Fac Upp Upp Zhi Pro Res Qua Frg Res Tes Acc Com Ac0 Used RIF Installer . | . . . . . . . . . . . . . . . . . . . . . . . . . . . . . . . . . . Robots Hacked 7 | . . . . . . . . 1 1 . . . . 1 . . 2 . 1 . 1 . . . . . . . . . . . . Non-combat 3 | . . . . . . . . . . . . . . 1 . . . . 1 . 1 . . . . . . . . . . . . Combat 4 | . . . . . . . . 1 1 . . . . . . . 2 . . . . . . . . . . . . . . . . Robot Hacks Applied 7 | . . . . . . . . 1 1 . . . . 1 . . 2 . 1 . 1 . . . . . . . . . . . . parse_system 5 | . . . . . . . . 1 1 . . . . . . . 2 . . . 1 . . . . . . . . . . . . find_chute 1 | . . . . . . . . . . . . . . . . . . . 1 . . . . . . . . . . . . . . find_fabricator 1 | . . . . . . . . . . . . . . 1 . . . . . . . . . . . . . . . . . . . Relay Couplers Released 4 | . . . . . . . . . . . . . . . . . . . . . . . . . . . . 4 . . . . . Machine Destruction 4 | . . . . . . . . . . . . . . . . . . . . . . . . . . . . 4 . . . . . Fabnet Peak Effective % . | . . . . . . . . . . . . . . . . . . . . . . . . . . . . . . . . . . Robots Rewired 1 | . . . . . . . . . . . . . . . . . . . . . . . . . . . . . 1 . . . . Allies Hacked 2 | . . . . . . 1 . . . . . 1 . . . . . . . . . . . . . . . . . . . . . Hacks Repelled 1 | . . . . . . . . . . . . 1 . . . . . . . . . . . . . . . . . . . . . Allies | -11 -10 -10 -10 -8 -8 -6 -6 -6 -6 -6 -5 -5 -5 -5 -5 -5 -5 -4 -4 -4 -4 -4 -4 -4 -3 -3 -3 -3 -2 -2 -1 -1 -1 -------- Run | Yrd Mat Min Sub Rec Scr Fac Low Low Zio Dee Pro Fac Was Fac Upp Upp War Pro Fac Was Fac Upp Upp Zhi Pro Res Qua Frg Res Tes Acc Com Ac0 Total Allies 63 | . . 6 . . 3 1 . 1 . . . 17 19 7 . . . . 1 1 3 . 1 . . 1 1 . 1 . . . . Largest Group 19 | . . 6 6 . 1 1 . 1 1 1 1 12 19 11 . . . . 1 1 2 . 1 1 1 1 1 . 1 . . . . Highest-Rated Group 684 | . . 124 124 . 57 26 . 93 93 93 52 506 684 438 . . . . 10 46 246 . 83 83 83 139 26 . 19 . . . . Highest-Rated Ally 139 | . . 31 31 . 57 26 . 93 93 93 52 50 50 50 . . . . 10 46 123 . 83 83 83 139 26 . 19 . . . . Total Orders 78 | . . . . . 11 . . . . 5 . 3 . 3 . 2 4 1 1 . 7 . . 1 2 3 6 . . 1 . 13 15 STAY 23 | . . . . . 8 . . . . 3 . 1 . 2 . . . . . . 4 . . 1 1 2 1 . . . . . . ROAM 1 | . . . . . . . . . . . . . . . . . . . . . . . . . . . . . . . . 1 . FOLLOW 12 | . . . . . 3 . . . . 1 . 2 . 1 . . . . . . 3 . . . 1 1 . . . . . . . EXPLORE 10 | . . . . . . . . . . . . . . . . 1 3 . . . . . . . . . 4 . . . . . 2 RETURN 32 | . . . . . . . . . . 1 . . . . . 1 1 1 1 . . . . . . . 1 . . 1 . 12 13 Ally Attacks 749 | . . . 31 . . . . . . 25 1 155 89 83 . . . . . 10 49 . . . 20 11 . . . 8 . 87 180 Total Damage 34067 | . . . 455 . . . . . . 668 . 4533 4672 1786 . . . . . 245 4135 . . . 1908 524 . . . 698 . 5415 9028 Kills 99 | . . . 2 . . . . . . 3 . 22 12 10 . . . . . . 25 . . . 8 4 . . . 3 . 1 9 Allies Corrupted 6 | . . . . . 1 . . . . . . . . 3 . . . . . . . . . . . . 1 . . . . 1 . Allies Melted 2 | . . . . . . . . . . . . . . . . . 1 . . . 1 . . . . . . . . . . . . Intel | -11 -10 -10 -10 -8 -8 -6 -6 -6 -6 -6 -5 -5 -5 -5 -5 -5 -5 -4 -4 -4 -4 -4 -4 -4 -3 -3 -3 -3 -2 -2 -1 -1 -1 ------- Run | Yrd Mat Min Sub Rec Scr Fac Low Low Zio Dee Pro Fac Was Fac Upp Upp War Pro Fac Was Fac Upp Upp Zhi Pro Res Qua Frg Res Tes Acc Com Ac0 Active Infowar (turns) 22104 | 28 773 . 871 129 1375 294 180 840 818 214 482 730 1042 1296 202 683 498 296 682 38 894 1413 825 72 602 556 754 3788 133 303 248 905 140 Optics 3529 | . . . . . . . . . . . . . . . . . . . . . . . . . . . 135 2813 . 154 248 39 140 Sensors 15226 | . . . . 129 1375 198 168 840 818 214 482 730 1042 1269 202 664 496 278 676 38 892 1413 825 72 601 553 671 580 . . . . . Structural 695 | . . . . . . . . . . . . . . . . 19 . 18 45 . 2 . . . 1 113 456 41 . . . . . Seismic 1916 | 28 773 . 871 . . 232 12 . . . . . . . . . . . . . . . . . . . . . . . . . . T.N.C. 314 | . . . . . . . . . . . . . . 314 . . . . . . . . . . . . . . . . . . . Cloaking 2478 | . . . . . . . . . . . . . . . . . 2 . . . . . . . . . . 975 133 219 248 901 . Jamming 201 | . . . . . . . . . . . . . . 32 . . . . . . . . . . . . 169 . . . . . . Robot Analysis Total 5 | . 1 . . . . . . . . . . . . . . . . . . . . . . 4 . . . . . . . . . Derelict Logs Recovered 17 | . . 1 2 . 5 . 1 2 . . 1 . . . 1 1 . . . . . 2 1 . . . . . . . . . . Drone Launches 77 | . . . . . . . . . . 4 . . . . . 1 3 1 1 . . . . . . . 10 . . 10 . 16 31 Drone Recoveries 61 | . . . . . . . . . . 3 . . . . . 1 . 1 1 . . . . . . . 10 . . 9 . 13 23 Exploration | -11 -10 -10 -10 -8 -8 -6 -6 -6 -6 -6 -5 -5 -5 -5 -5 -5 -5 -4 -4 -4 -4 -4 -4 -4 -3 -3 -3 -3 -2 -2 -1 -1 -1 ------------- Run | Yrd Mat Min Sub Rec Scr Fac Low Low Zio Dee Pro Fac Was Fac Upp Upp War Pro Fac Was Fac Upp Upp Zhi Pro Res Qua Frg Res Tes Acc Com Ac0 Turns Passed 39167 | 120 1001 442 7076 236 8125 320 180 840 821 906 483 800 1042 1362 202 742 677 372 815 38 967 1659 854 79 605 635 867 3815 133 351 248 1219 1135 Spaces Moved 38319 | 68 612 313 3968 144 4794 524 386 1471 1020 1266 795 1480 525 2283 581 625 945 629 1280 125 1697 743 678 221 1075 994 1856 3040 223 438 452 1237 1831 Core 1079 | 18 . . . . 594 . . . . . . . 142 . . . . . . . . 193 . . . . 132 . . . . . . Treads 3475 | . . . 1492 144 1350 . . . . . . . . . . . . . . . . . . . . . . 489 . . . . . Legs 813 | . . . . . . . . . . . . . . . . . . . . . . . . . . . . 813 . . . . . Wheels 5037 | 50 612 313 2476 . 1477 . . . . . . . . . . . . . . . . . . . . . . 109 . . . . . Hover 5233 | . . . . . . . . . . . . . . . . . . . . . . . . . . . . 1052 223 438 452 1237 1831 Flight 22682 | . . . . . 1373 524 386 1471 1020 1266 795 1480 383 2283 581 625 945 629 1280 125 1697 550 678 221 1075 994 1724 577 . . . . . Fastest Speed 14 | 50 100 115 107 160 34 34 34 34 34 34 34 32 32 32 32 32 30 30 30 30 28 34 28 29 25 24 25 14 33 33 33 33 33 Average Speed 68 | 86 112 115 136 160 117 37 34 35 58 34 34 32 186 32 32 32 31 34 30 30 31 205 106 29 28 29 30 78 33 34 36 44 40 Slowest Speed 660 | 100 115 115 260 160 660 94 34 94 94 94 34 95 600 95 32 32 89 90 30 30 34 500 120 29 30 112 100 190 33 108 108 108 108 Overloaded Moves 57 | . . . . . . . . . . . . . . . . . . . . . 5 . . . 4 1 1 45 . . . . 1 Propulsion Burnouts . | . . . . . . . . . . . . . . . . . . . . . . . . . . . . . . . . . . Robots Hopped 64 | . . . . . . 4 1 3 . . 1 13 2 6 3 1 . . 3 6 13 . . . . 3 1 4 . . . . . Potential Cave-ins 3 | . . . . . . . . . . . . . . . . . . . . . . . . . . . . 3 . . . . . Cave-ins Triggered . | . . . . . . . . . . . . . . . . . . . . . . . . . . . . . . . . . . Teleports 130 | . . . . . . . . . . . . . . . . . . . . . . . . . . . . 10 5 13 12 42 48 Exploration Rate (%) 62 | 6 91 62 95 32 88 18 61 93 86 75 84 31 91 54 83 64 97 61 28 91 26 83 71 60 95 11 97 44 12 74 23 48 98 Regions Visited 33 Branch Regions 22 Pre-discovered Areas 19 | . . . 1 1 6 . . . 2 . . . . . 2 . . . 1 . . 1 . 3 . . 2 . . . . . . Known Exits Taken 20 | . . . . . . 1 1 1 1 1 1 . . 1 1 1 1 1 . . 1 1 1 1 1 1 . 1 1 1 . . . Unknown Exits Taken 9 | 1 1 1 1 1 1 . . . . . . . . . . . . . . . . . . . . . 1 . . . 1 1 . Scrap Searched 45 | . . . 8 . 5 . 4 9 3 . 1 . . . 2 2 . 2 . . . 3 3 . 3 . . . . . . . . Spaces Dug 121 | . . . 9 . . 2 3 2 . 3 . 5 . 4 3 . . 1 3 . 7 . . . . 6 1 38 2 9 5 16 2 Terrain Destroyed 654 | . . . 20 . . 2 3 2 . 9 . 5 . 4 3 . . 1 4 . 36 . . . . 6 10 443 4 9 8 17 68 Melee 59 | . . . 4 . . 2 3 2 . 2 . 5 . 4 3 . . 1 3 . 7 . . . . 1 1 2 2 7 5 3 2 Projectile 539 | . . . 16 . . . . . . 7 . . . . . . . . 1 . 29 . . . . 5 9 441 2 2 3 . 24 AOE 45 | . . . . . . . . . . . . . . . . . . . . . . . . . . . . . . . . 14 31 Terrain Rammed . | . . . . . . . . . . . . . . . . . . . . . . . . . . . . . . . . . . Walls Destroyed . | . . . . . . . . . . . . . . . . . . . . . . . . . . . . . . . . . . Machines Disabled . | . . . . . . . . . . . . . . . . . . . . . . . . . . . . . . . . . . Actions | -11 -10 -10 -10 -8 -8 -6 -6 -6 -6 -6 -5 -5 -5 -5 -5 -5 -5 -4 -4 -4 -4 -4 -4 -4 -3 -3 -3 -3 -2 -2 -1 -1 -1 --------- Run | Yrd Mat Min Sub Rec Scr Fac Low Low Zio Dee Pro Fac Was Fac Upp Upp War Pro Fac Was Fac Upp Upp Zhi Pro Res Qua Frg Res Tes Acc Com Ac0 Total 49940 | 107 831 386 5371 149 7292 621 426 1791 1231 1701 1007 1734 579 2855 590 1152 1320 759 1640 118 2080 861 792 235 1361 1309 2089 4138 262 583 520 1888 2162 Wait 8645 | 18 131 64 1063 3 2324 40 18 275 187 315 208 209 50 471 6 506 326 106 261 . 297 102 65 . 268 198 69 443 13 21 23 502 63 Move 38166 | 67 611 312 3967 143 4793 516 383 1465 1019 1265 792 1454 521 2270 574 622 944 628 1274 115 1671 742 677 220 1074 987 1853 3031 222 437 451 1236 1830 Hop 58 | . . . . . . 4 1 2 . . 1 13 1 6 3 1 . . 3 3 12 . . . . 3 1 4 . . . . . Pick Up 336 | 5 11 2 29 . 70 5 4 18 3 22 2 3 . 7 2 1 3 . 6 . 2 2 9 2 . 13 17 61 . 6 1 14 16 Fast Attach 288 | 6 2 . 15 2 14 9 2 2 4 14 . 6 1 6 . 3 15 1 11 . 4 3 8 5 3 17 27 79 1 15 . 3 10 Attach 167 | 1 . . 9 . 7 13 2 2 2 8 . 3 . 6 . 2 3 . 7 . 2 3 . 2 . 2 19 37 2 1 2 10 22 Detach 88 | . . . 1 . 2 11 2 2 1 3 . 2 . 2 . 1 1 . 4 . 2 1 1 1 1 . 11 22 1 . . 5 11 Swap 255 | . 8 . 35 . 1 . 1 . . 4 1 7 . 23 . 5 3 9 15 . 9 . 1 . 4 12 7 36 7 20 4 23 20 Drop 471 | . 12 2 56 1 58 5 6 18 6 36 3 3 2 11 2 4 19 1 12 . 9 . 16 5 4 25 36 75 1 17 . 13 13 Fire 587 | 10 55 6 159 . 4 . 2 1 7 9 . . . . . 2 3 . 5 . 4 . . . . 6 13 241 4 2 3 12 39 Melee 726 | . . . 32 . 19 17 5 6 2 25 . 33 4 31 3 5 3 14 39 . 23 8 15 . 7 23 34 95 7 51 36 52 137 Ram 1 | . 1 . . . . . . . . . . . . . . . . . . . . . . . . . . . . . . . . Kick . | . . . . . . . . . . . . . . . . . . . . . . . . . . . . . . . . . . Crush . | . . . . . . . . . . . . . . . . . . . . . . . . . . . . . . . . . . Escape Stasis 94 | . . . . . . . . . . . . . . 15 . . . . . . 45 . . . . 20 . 14 . . . . . Rewire 36 | . . . . . . 1 . . . . . 1 . . . . . . 1 . . . . . . . . . 4 12 . 17 . Trap 14 | . . . 5 . . . . . . . . . . 6 . . . . . . . . . . . 3 . . . . . . . Miscellaneous 8 | . . . . . . . . . . . . . . 1 . . . . 2 . . . . . . . 2 . . 1 . 1 1 Route ------- -11/Scrapyard -10/Materials (discovered 4 exits: [*Mat x3] / *Min) -10/Mines -10/Subcaves (discovered 3 exits: [*Mat x2] / *Rec) -8/Recycling -8/Scraptown (discovered 2 exits: *Fac x2) -6/Factory (discovered 5 exits: *Fac x3 / *Low x2) -6/Lower Caves -6/Lower Caves (discovered 2 exits: *Fac / *Zio) -6/Zion (discovered 2 exits: *Dee / *Pro) -6/Deep Caves -5/Proximity Caves -5/Factory (discovered 3 exits: *Fac / Upp x2) -5/Waste -5/Factory (discovered 5 exits: Fac x4 / *Upp) -5/Upper Caves -5/Upper Caves (discovered 2 exits: Fac / *War) -5/Warlord -4/Proximity Caves -4/Factory (discovered 2 exits: *Res / *Ext) -4/Waste -4/Factory (discovered 5 exits: *Res / *Upp x2 / Ext x2) -4/Upper Caves -4/Upper Caves -4/Zhirov -3/Proximity Caves -3/Research (discovered 2 exits: Arm / *Qua) -3/Quarantine (discovered 3 exits: *Res / *Sec / *Frg) -3/Protoforge -2/Research (discovered 5 exits: Acc x3 / *Tes x2) -2/Testing -1/Access -1/Command (discovered 3 exits: [Sur x2] / *Ac0) -1/Access_0 0b11 Command History --------- Turn | Location | Event 5 | -11/Scrapyard | Discovered new exit (range 16) 121 | -11/Scrapyard | Entered Materials 313 | -10/Materials | Build established: Mutant 316 | -10/Materials | Discovered new exit (range 16) 549 | -10/Materials | Discovered new exit (range 8) 626 | -10/Materials | Repaired Assault Rifle 653 | -10/Materials | Repaired Lgt. Assault Rifle 725 | -10/Materials | Discovered new exit (range 15) 950 | -10/Materials | Discovered new exit (range 16) 1122 | -10/Materials | Entered Mines 1150 | -10/Mines | Assembled infested the area 1326 | -10/Mines | Received a Mining Laser from a helpful Derelict 1352 | -10/Mines | Assisted by bots powering up and referring to "LRC-V3" 1395 | -10/Mines | Learned Materials emergency access door positions 1544 | -10/Mines | Discovered new exit (range 11) 1564 | -10/Mines | Entered Subcaves 1564 | -10/Subcaves | Accompanied by 6 allies 1565 | -10/Subcaves | Ambushed by Subdwellers from Twisted Machinery 1565 | -10/Subcaves | Approached by a straggling Scientist 1569 | -10/Subcaves | Led the pair of lost Derelicts to an unsafe place 1622 | -10/Subcaves | Lost 7 allies 1991 | -10/Subcaves | Build established: Scavenger-Mutant 1997 | -10/Subcaves | Shifting Twisted Machinery released Sub. Power Source 1999 | -10/Subcaves | Shifting Twisted Machinery released Mak. Laser 2063 | -10/Subcaves | Learned location of Zion (-6) 2071 | -10/Subcaves | A swath of the cavern ceiling suddenly collapsed 2273 | -10/Subcaves | Disturbed a concealed Subdweller 2332 | -10/Subcaves | Core integrity fell below 50% 3292 | -10/Subcaves | Shifting Twisted Machinery released Sub. Optics 3297 | -10/Subcaves | Shifting Twisted Machinery released Battle Rifle 3540 | -10/Subcaves | Discovered new exit (range 7) 3566 | -10/Subcaves | Learned Materials terminal intel 3651 | -10/Subcaves | Disturbed a concealed Subdweller 3762 | -10/Subcaves | Shifting Twisted Machinery released Sub. Machine Gun 3768 | -10/Subcaves | Discovered new exit (range 10) 3771 | -10/Subcaves | Shifting Twisted Machinery released Sub. Laser 3792 | -10/Subcaves | Ambushed by angry Subdweller bent on revenge 4153 | -10/Subcaves | Visited 4L-MR0's lab 4172 | -10/Subcaves | Found Flightbrick 4548 | -10/Subcaves | A swath of the cavern ceiling suddenly collapsed 4643 | -10/Subcaves | Ambushed by Subdweller buried in earth 4961 | -10/Subcaves | Ambushed by Subdwellers from Twisted Machinery 5372 | -10/Subcaves | Build established: Mutant 5431 | -10/Subcaves | Discovered new exit (range 11) 5792 | -10/Subcaves | Core integrity fell below 20% 8640 | -10/Subcaves | Entered Recycling 8839 | -8/Recycling | Scanned before Scraplab entrance 8861 | -8/Recycling | Entered Scraplab 8874 | -8/Recycling | Discovered new exit (range 2) 8876 | -8/Recycling | Entered Scraptown 9096 | -8/Scraptown | Visited Shadow of the Wyrm 9174 | -8/Scraptown | Visited Fellowship of the Rings 9216 | -8/Scraptown | Visited Spacefarers 9241 | -8/Scraptown | Visited Assassins FH 9307 | -8/Scraptown | Visited UFD Registry 9307 | -8/Scraptown | Registered with UFD as "Zeroform" 9345 | -8/Scraptown | Visited Botcube Research 9371 | -8/Scraptown | Visited Scrap Suit Storage 9393 | -8/Scraptown | Visited Supply Room 9513 | -8/Scraptown | Visited Science Guys 9563 | -8/Scraptown | Visited Derelict Rescue Squad 9600 | -8/Scraptown | Visited Research Penetration Think Tank 9628 | -8/Scraptown | Visited Cartography Club 9667 | -8/Scraptown | Visited Sword Containment 9702 | -8/Scraptown | Visited LU-1G1's Boring Crew 9728 | -8/Scraptown | Visited Curators Association 9851 | -8/Scraptown | Visited Junk Repository 9934 | -8/Scraptown | Discovered new exit (range 11) 11460 | -8/Scraptown | Scanned Subdweller tech in exchange for log data 11463 | -8/Scraptown | Learned Research stockpile data 11466 | -8/Scraptown | Learned location of Armory (-3) 11468 | -8/Scraptown | Learned Factory stockpile data 11470 | -8/Scraptown | Learned location of 1 exit from Proximity Caves 11665 | -8/Scraptown | Delivered Scrap Shield to a Scientist 11994 | -8/Scraptown | Build established: Hauler-Mutant 12156 | -8/Scraptown | Learned location of Lower Caves (-7) 12156 | -8/Scraptown | Learned location of Warlord (-5) 12156 | -8/Scraptown | Learned location of Extension (-4) 12156 | -8/Scraptown | Learned 16 Materials zone layouts 12156 | -8/Scraptown | Learned 20 Factory zone layouts 12156 | -8/Scraptown | Learned 8 Access zone layouts 12156 | -8/Scraptown | Learned 4 Storage zone layouts 12156 | -8/Scraptown | Learned 20 Lower Caves zone layouts 12156 | -8/Scraptown | Learned 8 Upper Caves zone layouts 12156 | -8/Scraptown | Learned 16 Upper Caves zone layouts 12156 | -8/Scraptown | Learned 12 Proximity Caves zone layouts 12156 | -8/Scraptown | Learned location of 2 exits from Upper Caves 12156 | -8/Scraptown | Learned location of 3 exits from Proximity Caves 12176 | -8/Scraptown | Found Deep Structural Scanner 12225 | -8/Scraptown | Discovered new exit (range 3) 12383 | -8/Scraptown | Build established: Mutant 12645 | -8/Scraptown | Found Lrg. Botcube 12843 | -8/Scraptown | Found DRS Beacon 13085 | -8/Scraptown | Build established: Hauler-Mutant 14139 | -8/Scraptown | Lrg. Botcube activated 14153 | -8/Scraptown | Lrg. Botcube completed mutation into hovering form (unarmed). 14609 | -8/Scraptown | Attached CPS modules to Large Mutated Botcube. 14697 | -8/Scraptown | Found PL-3XN's Ring of Power 14780 | -8/Scraptown | Murdered Large Mutated Botcube 14780 | -8/Scraptown | Destroyed Large Mutated Botcube 14782 | -8/Scraptown | Found Lrg. Botcube 14845 | -8/Scraptown | Lrg. Botcube activated 14851 | -8/Scraptown | Lrg. Botcube completed mutation into legged form (unarmed). 14866 | -8/Scraptown | Attached CPS modules to Large Mutated Botcube. 14905 | -8/Scraptown | Build established: Mutant 14931 | -8/Scraptown | Murdered Large Mutated Botcube 14931 | -8/Scraptown | Destroyed Large Mutated Botcube 14934 | -8/Scraptown | Found Lrg. Botcube 14960 | -8/Scraptown | Found Scrap Suit 14999 | -8/Scraptown | Lrg. Botcube activated 15011 | -8/Scraptown | Lrg. Botcube completed mutation into legged form (unarmed). 15014 | -8/Scraptown | Attached CPS modules to Large Mutated Botcube. 15155 | -8/Scraptown | Murdered Large Mutated Botcube 15155 | -8/Scraptown | Destroyed Large Mutated Botcube 15159 | -8/Scraptown | Found Lrg. Botcube 15488 | -8/Scraptown | Tech Extrapolator generated special schematic: Vmp. Humpback 15577 | -8/Scraptown | Tech Extrapolator generated special schematic: Deep Structural Scanner 16026 | -8/Scraptown | Tech Extrapolator generated special schematic: Vmp. Brace Plating 16186 | -8/Scraptown | Tech Extrapolator generated special schematic: Machine Rigger 16888 | -8/Scraptown | Found Prototype Slashing Weapon 16888 | -8/Scraptown | Identified Companion Sword 16943 | -8/Scraptown | Met Optimus 16943 | -8/Scraptown | Accepted into 0bPrime 17001 | -8/Scraptown | Entered Factory 17001 | -6/Factory | Evolved 8 slots: Power x1, Propulsion x3, Utility x4 17002 | -6/Factory | Identified exit to Factory 17002 | -6/Factory | Identified exit to Lower Caves 17003 | -6/Factory | Attached Flightbrick, gained temporary slots: Utility x3 17167 | -6/Factory | Tech Extrapolator generated special schematic: Energy Deflector 17266 | -6/Factory | Discovered exit to Factory (range 9) 17308 | -6/Factory | Central database locked down 17321 | -6/Factory | Entered Lower Caves 17322 | -6/Lower Caves | Identified exit to Lower Caves 17323 | -6/Lower Caves | UFD Scientist delivered a prototype 17324 | -6/Lower Caves | Found Prototype Protection 17336 | -6/Lower Caves | Attracted the attention of an 0b10 checkpoint 17354 | -6/Lower Caves | Learned Factory emergency access door positions 17365 | -6/Lower Caves | Build established: Hacker-Mutant 17430 | -6/Lower Caves | Acquired the password to a Derelict Tinkerer's latest research 17433 | -6/Lower Caves | Found Prototype Special Weapon 17461 | -6/Lower Caves | Identified Molecular Deconstructor 17501 | -6/Lower Caves | Entered another Lower Caves area 17507 | -6/Lower Caves | Discovered exit to Factory (range 15) 17533 | -6/Lower Caves | Entered a destroyed Warlord outpost 17625 | -6/Lower Caves | Learned 4 Factory zone layouts 17656 | -6/Lower Caves | Learned Factory security intel 17707 | -6/Lower Caves | Discovered new exit (range 14) 17718 | -6/Lower Caves | Identified exit to Zion 17813 | -6/Lower Caves | Tech Extrapolator generated special schematic: Vmp. Broadsword 17873 | -6/Lower Caves | Tech Extrapolator generated special schematic: Fire Trap 17970 | -6/Lower Caves | Tech Extrapolator generated special schematic: Heat Bomb Trap 18219 | -6/Lower Caves | Lrg. Botcube activated 18247 | -6/Lower Caves | Lrg. Botcube completed mutation into treaded form, armed with 3 melee weapons. 18252 | -6/Lower Caves | Attached CPS modules to *Anti-paladin. 18341 | -6/Lower Caves | Entered Zion 18341 | -6/Zion | Accompanied by 1 ally 18342 | -6/Zion | Identified exit to Proximity Caves 18395 | -6/Zion | Learned location of Quarantine (-3) 18459 | -6/Zion | Learned Factory terminal intel 18475 | -6/Zion | Received a hallucinogenic algorithm 18509 | -6/Zion | Given the Hacking Drone Bay 18510 | -6/Zion | Found Prototype Device 18510 | -6/Zion | Identified Hacking Drone Bay 18528 | -6/Zion | Found CR-A16's Pointy Stick 18719 | -6/Zion | Found GAL Module 18809 | -6/Zion | Build established: Derelict-Mutant 18825 | -6/Zion | Turned away by Imprinter 19099 | -6/Zion | Discovered new exit (range 5) 19100 | -6/Zion | Saw the warning signs outside the Deep Caves entrance 19103 | -6/Zion | Identified exit to Deep Caves 19162 | -6/Zion | Entered Deep Caves 19162 | -6/Deep Caves | Accompanied by 1 ally 19163 | -6/Deep Caves | Identified exit to Proximity Caves 19319 | -6/Deep Caves | Attacked by Z-Imprinter 19332 | -6/Deep Caves | Allies destroyed Z-Imprinter 19351 | -6/Deep Caves | Found Prototype Protection 19351 | -6/Deep Caves | Identified Zio. Weapon Casing 19583 | -6/Deep Caves | Found Zio. Weapon Casing 19630 | -6/Deep Caves | Build established: Hacker-Mutant 19987 | -6/Deep Caves | Found Zio. Weapon Casing 20043 | -6/Deep Caves | Spotted AG-60331 20052 | -6/Deep Caves | Found Prototype Device 20068 | -6/Deep Caves | Entered Proximity Caves 20068 | -5/Proximity Caves | Accompanied by 1 ally 20162 | -5/Proximity Caves | Spotter reported a threat 20236 | -5/Proximity Caves | Found Lrg. Botcube 20426 | -5/Proximity Caves | Attracted the attention of an 0b10 checkpoint 20437 | -5/Proximity Caves | Learned Factory emergency access door positions 20551 | -5/Proximity Caves | Entered Factory 20551 | -5/Factory | Evolved 2 slots: Propulsion x1, Utility x1 20552 | -5/Factory | Identified exit to Upper Caves 20556 | -5/Factory | Loaded intel: 26 terminal locations 20601 | -5/Factory | Allied Derelicts emerged from ambush trap array 20621 | -5/Factory | Discovered new exit (range 12) 20631 | -5/Factory | Identified exit to Factory 20694 | -5/Factory | Scrapoids reinforcements arrived? 20749 | -5/Factory | Identified Trap Reconfigurator 20805 | -5/Factory | Scrapoid reinforcements arrived 20845 | -5/Factory | Build established: Hacker-Sprinter 21032 | -5/Factory | Scrapoid reinforcements arrived 21160 | -5/Factory | Repaired Adv. Sensor Array 21210 | -5/Factory | Repaired Microactuators 21297 | -5/Factory | Cargo convoy interrupted 21351 | -5/Factory | Sucked down chute 21351 | -5/Factory | Entered Waste 21354 | -5/Waste | Spotted C-40 Crusher 21354 | -5/Waste | Spotted C-40 Crusher 21362 | -5/Waste | Spotted C-40 Crusher 21369 | -5/Waste | Lost 3 allies 21373 | -5/Waste | Spotted C-40 Crusher 21375 | -5/Waste | Spotted C-40 Crusher 21375 | -5/Waste | Spotted C-40 Crusher 21385 | -5/Waste | Warlord forces began an assault 21400 | -5/Waste | Allies destroyed C-40 Crusher 21404 | -5/Waste | Allies destroyed C-40 Crusher 21408 | -5/Waste | Allies destroyed C-40 Crusher 21417 | -5/Waste | Discovered new exit (range 15) 21435 | -5/Waste | Lost 7 allies 21829 | -5/Waste | Build established: Hacker-Mutant 22392 | -5/Waste | Identified exit to Factory 22393 | -5/Waste | Entered Factory 22393 | -5/Factory | Accompanied by 11 allies 22619 | -5/Factory | Lost 5 allies 22782 | -5/Factory | Scrapoids reinforcements arrived? 22899 | -5/Factory | Loaded intel: 7 recycling unit locations 22926 | -5/Factory | Build established: Hacker-Sprinter 23300 | -5/Factory | Repaired Imp. VTOL Module 23548 | -5/Factory | Cargo convoy interrupted 23755 | -5/Factory | Entered Upper Caves 23756 | -5/Upper Caves | Identified exit to Upper Caves 23757 | -5/Upper Caves | Attracted the attention of an 0b10 checkpoint 23796 | -5/Upper Caves | Learned Armory security intel 23796 | -5/Upper Caves | Learned Research emergency access door positions 23796 | -5/Upper Caves | Learned location of 1 exit from Research 23887 | -5/Upper Caves | Encountered a Warlord checkpoint 23909 | -5/Upper Caves | Entered an active Warlord outpost 23912 | -5/Upper Caves | Learned Armory trap positions 23957 | -5/Upper Caves | Entered another Upper Caves area 23958 | -5/Upper Caves | Identified exit to Warlord 24199 | -5/Upper Caves | Spotted B-75 Beast 24699 | -5/Upper Caves | Entered Warlord 24716 | -5/Warlord | Discovered new exit (range 22) 24836 | -5/Warlord | Found Prototype Device 24836 | -5/Warlord | Identified Exp. Cloaking Device 24839 | -5/Warlord | Found Prototype Device 24839 | -5/Warlord | Identified Thermal Barrier 24844 | -5/Warlord | Found Prototype Reactor 24844 | -5/Warlord | Identified Vortex Chain Reactor 24850 | -5/Warlord | Found Prototype Hackware 24856 | -5/Warlord | Rebuked by Warlord 24881 | -5/Warlord | Warlord's base attacked by MAIN.C 24881 | -5/Warlord | Found Prototype Device 24881 | -5/Warlord | Identified Minesniffer Drone Bay 24907 | -5/Warlord | Found Prototype Energy Cannon 24907 | -5/Warlord | Identified Vortex Cannon 24958 | -5/Warlord | Opened side exit 25231 | -5/Warlord | Warlord forces counterattacked 25270 | -5/Warlord | Spotted Executioner 25303 | -5/Warlord | Lost 4 allies 25320 | -5/Warlord | Spotted B-86 Titan 25324 | -5/Warlord | Spotted Executioner 25375 | -5/Warlord | Identified exit to Proximity Caves 25376 | -5/Warlord | Entered Proximity Caves 25392 | -4/Proximity Caves | Lost 6 allies 25621 | -4/Proximity Caves | Spotted B-86 Titan 25748 | -4/Proximity Caves | Entered Factory 25748 | -4/Factory | Evolved 2 slots: Utility x2 25780 | -4/Factory | Discovered new exit (range 10) 25866 | -4/Factory | Tech Extrapolator generated special schematic: Hyp. Alpha Cannon 25990 | -4/Factory | Discovered new exit (range 13) 25997 | -4/Factory | Identified exit to Research 26102 | -4/Factory | Fabricated Hyp. Alpha Cannon (x1) 26193 | -4/Factory | Identified System Mapper 26473 | -4/Factory | Loaded intel: 8 recycling unit locations 26473 | -4/Factory | Learned location of Protoforge (-3) 26563 | -4/Factory | Manually triggered Chute Trap 26563 | -4/Factory | Sucked down chute 26563 | -4/Factory | Entered Waste 26564 | -4/Waste | Met a frightened Derelict 26567 | -4/Waste | Spotted C-40 Crusher 26577 | -4/Waste | Spotted C-40 Crusher 26578 | -4/Waste | EMP discharged 26578 | -4/Waste | Spotted C-40 Crusher 26580 | -4/Waste | Spotted C-40 Crusher 26588 | -4/Waste | Spotted C-40 Crusher 26594 | -4/Waste | Spotted C-40 Crusher 26598 | -4/Waste | Discovered new exit (range 11) 26600 | -4/Waste | Identified exit to Factory 26601 | -4/Waste | Entered Factory 26603 | -4/Factory | Tech Extrapolator generated special schematic: Vmp. Heavy Siege Treads 26635 | -4/Factory | Found Prototype Hackware 26635 | -4/Factory | Identified Exp. System Shield 26641 | -4/Factory | Identified exit to Upper Caves 26641 | -4/Factory | Identified exit to Extension 26693 | -4/Factory | Discovered exit to Research (range 10) 26776 | -4/Factory | Fabricated Field Propulsion Array? 26783 | -4/Factory | Loaded intel: 8 recycling unit locations 26830 | -4/Factory | Scraphulk reinforcements arrived? 26933 | -4/Factory | Repaired Q-thruster 27055 | -4/Factory | Scraphulk reinforcements arrived 27096 | -4/Factory | Scraphulk reinforcements arrived? 27231 | -4/Factory | Build established: Wizard-Sprinter 27311 | -4/Factory | Fabricated Hds. Centrium Heavy Treads? 27464 | -4/Factory | Cargo convoy interrupted 27538 | -4/Factory | System corruption reached 10% 27568 | -4/Factory | Entered Upper Caves 27591 | -4/Upper Caves | Lost 3 parts (1p2n) 27842 | -4/Upper Caves | Build established: Hacker-Mutant 28566 | -4/Upper Caves | Learned Research security intel 28910 | -4/Upper Caves | Learned location of Testing (-2) 28965 | -4/Upper Caves | Build established: Wizard-Mutant 29169 | -4/Upper Caves | Discovered new exit (range 8) 29183 | -4/Upper Caves | Identified exit to Upper Caves 29227 | -4/Upper Caves | Entered another Upper Caves area 29451 | -4/Upper Caves | Identified exit to Zhirov 29754 | -4/Upper Caves | Found DCF Scrap (13 items) 29992 | -4/Upper Caves | Lrg. Botcube activated 30010 | -4/Upper Caves | Lrg. Botcube completed mutation into treaded form, armed with 1 launcher. 30081 | -4/Upper Caves | Entered Zhirov 30081 | -4/Zhirov | Accompanied by 1 ally 30081 | -4/Zhirov | Discovered new exit (range 3) 30082 | -4/Zhirov | Identified exit to Proximity Caves 30092 | -4/Zhirov | Learned location of Command (-1) 30113 | -4/Zhirov | Found Alien Artifact 30113 | -4/Zhirov | Identified Integrated Reactor 30113 | -4/Zhirov | Installed Integrated Reactor, increased core energy generation (+10) 30121 | -4/Zhirov | Found Alien Artifact 30160 | -4/Zhirov | Entered Proximity Caves 30160 | -3/Proximity Caves | Accompanied by 1 ally 30162 | -3/Proximity Caves | Spotter reported a threat 30372 | -3/Proximity Caves | Build established: Wizard-Sprinter 30602 | -3/Proximity Caves | Attracted the attention of an 0b10 checkpoint 30765 | -3/Proximity Caves | Entered Research 30765 | -3/Research | Accompanied by 1 ally 30765 | -3/Research | Evolved 2 slots: Propulsion x1, Utility x1 30766 | -3/Research | Identified exit to Armory 31100 | -3/Research | Lost 3 parts (2p1n) 31165 | -3/Research | Murdered *Nuker 31165 | -3/Research | Destroyed *Nuker 31227 | -3/Research | Scraphulk reinforcements arrived? 31324 | -3/Research | Discovered new exit (range 15) 31346 | -3/Research | Identified exit to Quarantine 31400 | -3/Research | Entered Quarantine 31407 | -3/Quarantine | Found Alien Energy Cannon 31431 | -3/Quarantine | Identified Transdimensional Reconstructor 31455 | -3/Quarantine | Found Fusion Bomb Launcher 31669 | -3/Quarantine | Central database locked down 31681 | -3/Quarantine | Unchained authorized (DW-4LL) 31696 | -3/Quarantine | Cryocooling Duct disabled 31711 | -3/Quarantine | Ambient heat levels rising (+20) 31711 | -3/Quarantine | Non-combat units ordered to evacuate 31728 | -3/Quarantine | Found Alien Artifact 31769 | -3/Quarantine | Identified Core Cannon 31833 | -3/Quarantine | Discovered new exit (range 18) 31835 | -3/Quarantine | Identified Phase Armor 31843 | -3/Quarantine | Identified exit to Research 31845 | -3/Quarantine | Learned Testing trap positions 31878 | -3/Quarantine | Learned location of 3 exits from Research 31902 | -3/Quarantine | Learned Testing stockpile data 31915 | -3/Quarantine | Learned 4 Testing zone layouts 31919 | -3/Quarantine | Learned location of 2 exits from Research 31934 | -3/Quarantine | Build established: Hacker-Scout 31958 | -3/Quarantine | Attached CPS modules to DW-4LL. 31986 | -3/Quarantine | Identified exit to Section 7 31997 | -3/Quarantine | System corruption reached 10% 32008 | -3/Quarantine | System corruption reached 30% 32067 | -3/Quarantine | Lost 16 parts (3p5n7u1w) 32162 | -3/Quarantine | Found Alien Slashing Weapon 32162 | -3/Quarantine | Identified Sigix Broadsword 32203 | -3/Quarantine | Found Alien Reactor 32236 | -3/Quarantine | Build established: Mutant 32241 | -3/Quarantine | Spotted Fortress 32265 | -3/Quarantine | Discovered new exit (range 7) 32267 | -3/Quarantine | Entered Protoforge 32267 | -3/Protoforge | Spotted B-86 Titan 32299 | -3/Protoforge | Identified Matter Drive 32305 | -3/Protoforge | Superfortress began startup sequence 32329 | -3/Protoforge | Discovered exit to Research (range 14) 32504 | -3/Protoforge | Spotted Hotshot 32533 | -3/Protoforge | Spotted Hotshot 32679 | -3/Protoforge | Core integrity fell below 50% 32694 | -3/Protoforge | Lost 4 parts (3n1u) 32761 | -3/Protoforge | Spotted Immortal 32761 | -3/Protoforge | Spotted Immortal 32767 | -3/Protoforge | Spotted Decapitator 32767 | -3/Protoforge | Spotted Decapitator 32767 | -3/Protoforge | Spotted Decapitator 32767 | -3/Protoforge | Spotted Decapitator 32804 | -3/Protoforge | Destroyed Decapitator 32804 | -3/Protoforge | Destroyed Decapitator 32806 | -3/Protoforge | Destroyed Decapitator 32806 | -3/Protoforge | Destroyed Decapitator 32890 | -3/Protoforge | Found Prototype Device 32890 | -3/Protoforge | Identified Exp. Thermal Defense Suite 32894 | -3/Protoforge | Found Prototype Device 32894 | -3/Protoforge | Identified Exp. EM Disruption Field 32897 | -3/Protoforge | Found Prototype Protection 32897 | -3/Protoforge | Identified Cep. Core Shell 32899 | -3/Protoforge | Found Femtoactuators 32907 | -3/Protoforge | Found Cep. Projectile Intercept Suite 32913 | -3/Protoforge | Found Cep. Core Shell 32926 | -3/Protoforge | Found Cep. RG22 Armor 32928 | -3/Protoforge | Found Cep. Reaction Jets 32953 | -3/Protoforge | Forge Plexus network access discovered 32967 | -3/Protoforge | Spotted V409-r 33012 | -3/Protoforge | Scanned by Researcher 33118 | -3/Protoforge | Destroyed Immortal 33166 | -3/Protoforge | Destroyed Immortal 33208 | -3/Protoforge | Found Cep. Antigrav Storage Unit 33212 | -3/Protoforge | Found Cep. NT7 Matterbank 33213 | -3/Protoforge | Found Cep. Chromion Battery 33215 | -3/Protoforge | Found Cep. Matter Streamer 33219 | -3/Protoforge | Found Cep. Chromion Battery 33221 | -3/Protoforge | Found Cep. Antigrav Storage Unit 33304 | -3/Protoforge | Found Crosscalibrator 33428 | -3/Protoforge | Spotted V531-p 33486 | -3/Protoforge | Destroyed V531-p 33496 | -3/Protoforge | Found Prototype Device 33496 | -3/Protoforge | Identified Exp. Shock Absorption System 33498 | -3/Protoforge | Found Prototype Processor 33498 | -3/Protoforge | Identified Exp. Core Analyzer 33504 | -3/Protoforge | Found Exp. Focal Shield 33517 | -3/Protoforge | First assault squad dispatched 33536 | -3/Protoforge | Build established: Scavenger-Mutant 33795 | -3/Protoforge | Found Faulty Cep. Biometal Exoskeleton 33799 | -3/Protoforge | Found Cep. Biometal Exoskeleton 33830 | -3/Protoforge | Found Cep. Biometal Exoskeleton 33862 | -3/Protoforge | Found Faulty Cep. Combat Aerolev Unit 33875 | -3/Protoforge | Found Cep. Combat Aerolev Unit 34002 | -3/Protoforge | Found Faulty Cep. Beam Splitter 34004 | -3/Protoforge | Found Faulty Cep. Beam Splitter 34016 | -3/Protoforge | Found Faulty Cep. Reaction Jets 34021 | -3/Protoforge | Found Faulty Cep. RG22 Armor 34032 | -3/Protoforge | Found Cep. Core Shell 34213 | -3/Protoforge | Spotted Decapitator 34213 | -3/Protoforge | Spotted Decapitator 34213 | -3/Protoforge | Spotted Decapitator 34213 | -3/Protoforge | Spotted Decapitator 34372 | -3/Protoforge | Found Faulty Cep. Plasma Driver 34386 | -3/Protoforge | Found Cep. Miniperforator 34402 | -3/Protoforge | Found Cep. Plasma Driver 34417 | -3/Protoforge | Found Cep. Plasma Driver 34512 | -3/Protoforge | Found Exp. Jetlance 34531 | -3/Protoforge | Found Cep. Lightning Penetrator 34534 | -3/Protoforge | Found Cep. Helical Railcannon 34602 | -3/Protoforge | Spotted AP7-3 34602 | -3/Protoforge | Spotted AP7-3 34618 | -3/Protoforge | Destroyed AP7-3 34630 | -3/Protoforge | Destroyed AP7-3 34688 | -3/Protoforge | Found Faulty Cep. Dimensional Manipulator 34694 | -3/Protoforge | Found Faulty Cep. Dimensional Manipulator 34703 | -3/Protoforge | Found Prototype Device 34704 | -3/Protoforge | Identified Cep. Impact Drone Bay 34709 | -3/Protoforge | Found Cep. Impact Drone Bay 34714 | -3/Protoforge | Found Cep. Cloak Mesh 34720 | -3/Protoforge | Found Cep. Cloak Mesh 34753 | -3/Protoforge | Found Cld. Directed Potential Cannon 34760 | -3/Protoforge | Found Cep. Thermoelectric Network 34978 | -3/Protoforge | Spotted Immortal 34978 | -3/Protoforge | Spotted Immortal 35025 | -3/Protoforge | Destroyed Immortal 35026 | -3/Protoforge | Core integrity fell below 20% 35034 | -3/Protoforge | Destroyed Immortal 35052 | -3/Protoforge | Found Prototype Processor 35052 | -3/Protoforge | Identified Exp. Melee Analysis Suite 35060 | -3/Protoforge | Spotted V697-a 35081 | -3/Protoforge | Found Prototype Device 35081 | -3/Protoforge | Identified Cep. Antimissile System 35089 | -3/Protoforge | Found Prototype Processor 35089 | -3/Protoforge | Identified Cep. Melee Reflex Suite 35096 | -3/Protoforge | Found Femtoactuators 35110 | -3/Protoforge | Found Cep. Weapon Articulator 35121 | -3/Protoforge | Spotted V536-q 35122 | -3/Protoforge | Spotted V235-t 35148 | -3/Protoforge | Found Mni. Quantum Capacitor 35449 | -3/Protoforge | Destroyed 10 combat bots 35548 | -3/Protoforge | Build established: Mutant 35634 | -3/Protoforge | Additional patrols dispatched to research labs 35651 | -3/Protoforge | Found Cep. Nanofilaments [Tensile] 35651 | -3/Protoforge | Installed Cep. Nanofilaments [Tensile], 3 resistances modified: KI +20%, TH -10%, I +20% 35663 | -3/Protoforge | Found Cep. Navigation Harness 35672 | -3/Protoforge | Found Transdimensional Reconstructor 35829 | -3/Protoforge | Warped through subspace 35889 | -3/Protoforge | Found Cep. Core Shell 36035 | -3/Protoforge | Found Cep. Gyrokinetic System 36082 | -3/Protoforge | Entered Research 36082 | -2/Research | Evolved 2 slots: Utility x1, Weapon x1 36083 | -2/Research | Identified exit to Testing 36084 | -2/Research | Identified exit to Access 36101 | -2/Research | Garrison activated, responded to threat 36146 | -2/Research | Found Exp. Core Analyzer 36215 | -2/Research | Entered Testing 36217 | -2/Testing | Loaded intel: 15 trap records 36267 | -2/Testing | Spotted Striker 36271 | -2/Testing | Spotted Striker 36307 | -2/Testing | Spotted Alpha 7 36312 | -2/Testing | Allies destroyed Striker 36314 | -2/Testing | Allies destroyed Striker 36315 | -2/Testing | Allies destroyed Alpha 7 36345 | -2/Testing | Build established: Sprinter 36410 | -2/Testing | Found Spectral Analyzer 36439 | -2/Testing | Found Prototype Launcher 36440 | -2/Testing | Identified Z-bomb Delivery System 36480 | -2/Testing | Spotted PP-3GRFF5DASW 36510 | -2/Testing | Destroyed PP-3GRFF5DASW 36513 | -2/Testing | Found Prototype Reactor 36513 | -2/Testing | Identified Zero-point Reactor 36517 | -2/Testing | Found Prototype Processor 36517 | -2/Testing | Identified Exp. Target Analyzer 36545 | -2/Testing | Found Prototype Protection 36545 | -2/Testing | Identified Lgt. Regenerative Plating 36547 | -2/Testing | Found Prototype Protection 36547 | -2/Testing | Identified Med. Regenerative Plating 36561 | -2/Testing | Discovered exit to Access (range 12) 36566 | -2/Testing | Entered Access 36566 | -1/Access | Evolved 2 slots: Utility x2 36654 | -1/Access | Spotted B-99 Colossus 36774 | -1/Access | Unchained authorized (DW-4LL) 36805 | -1/Access | Discovered new exit (range 7) 36814 | -1/Access | Entered Command 36815 | -1/Command | Forged Quantum Companion 36845 | -1/Command | Spotted M Guard 36845 | -1/Command | Spotted M Guard 36845 | -1/Command | Spotted Combat Programmer 36845 | -1/Command | Spotted Combat Programmer 36856 | -1/Command | Destroyed M Guard 36859 | -1/Command | Destroyed Combat Programmer 36863 | -1/Command | Destroyed Combat Programmer 36868 | -1/Command | Destroyed M Guard 36868 | -1/Command | All MAIN.C guards destroyed 36893 | -1/Command | Met MAIN.C 36909 | -1/Command | MAIN.C activated Command garrisons 36909 | -1/Command | Destroyed MAIN.C Shell 36910 | -1/Command | 0b10 Conduit disabled 36952 | -1/Command | Destroyed MAIN.C 36954 | -1/Command | Discovered new exit (range 42) 36954 | -1/Command | Discovered new exit (range 84) 36954 | -1/Command | Extracted map data and part IDs from MAIN.C's data core 36966 | -1/Command | Spotted B-99 Colossus 36972 | -1/Command | Lost 3 allies 37304 | -1/Command | Found Exp. System Purifier 37308 | -1/Command | Found Zero-point Reactor 38024 | -1/Command | Found Exp. Core Analyzer 38027 | -1/Command | Warped through subspace to slip node 38027 | -1/Command | Discovered new exit (range 4) 38029 | -1/Command | Found Exp. Melee Analysis Suite 38033 | -1/Command | Entered Access_0 38035 | -1/Access_0 | Met Architect 38043 | -1/Access_0 | Destroyed A8 38056 | -1/Access_0 | Architect warped through subspace 38086 | -1/Access_0 | Lost 3 parts (2u1w) 38104 | -1/Access_0 | Architect warped through subspace 38106 | -1/Access_0 | Subspace Access Node disabled 38149 | -1/Access_0 | Subspace Access Node disabled 38167 | -1/Access_0 | Found Prototype Protection 38168 | -1/Access_0 | Identified Centrium Linked Plating 38171 | -1/Access_0 | A6 warped into view 38173 | -1/Access_0 | Subspace Access Node disabled 38200 | -1/Access_0 | Found Exp. Weapon Cycler 38203 | -1/Access_0 | Found Exp. Phase Shifter 38231 | -1/Access_0 | Destroyed A6 38232 | -1/Access_0 | Found Med. Regenerative Plating 38234 | -1/Access_0 | Architect warped through subspace 38268 | -1/Access_0 | Architect warped through subspace 38274 | -1/Access_0 | A5 warped into view 38323 | -1/Access_0 | Architect warped through subspace 38376 | -1/Access_0 | Found Hpw. Transdimensional Reconstructor 38380 | -1/Access_0 | Singularity Gate disabled 38414 | -1/Access_0 | Architect warped through subspace 38426 | -1/Access_0 | Singularity Gate disabled 38429 | -1/Access_0 | A4 warped into view 38449 | -1/Access_0 | Found Spectral Analyzer 38476 | -1/Access_0 | Subspace Access Node disabled 38499 | -1/Access_0 | Found Centrium Linked Plating 38506 | -1/Access_0 | Core integrity fell below 50% 38521 | -1/Access_0 | Destroyed A4 38526 | -1/Access_0 | Destroyed A2 38536 | -1/Access_0 | Lost 3 parts (1n2u) 38601 | -1/Access_0 | Destroyed Architect 38757 | -1/Access_0 | Found Exp. Powered Armor 38811 | -1/Access_0 | Found Integrated Mediator 38811 | -1/Access_0 | Installed Integrated Mediator, increased core attachment efficiency 38919 | -1/Access_0 | A3 warped into view 38942 | -1/Access_0 | Allies destroyed A3 38947 | -1/Access_0 | Build established: Gladiator 38995 | -1/Access_0 | Found Prototype Device 38996 | -1/Access_0 | Identified Desublimator 39034 | -1/Access_0 | Found Sigix Corpse 39150 | -1/Access_0 | Found Integrated Reactor 39151 | -1/Access_0 | Installed Integrated Reactor, increased core energy generation (+10) 39159 | -1/Access_0 | Warped through subspace to slip node 39159 | -1/Access_0 | Discovered new exit (range 8) 39168 | *** | Establishing 0b11! Last Messages --------------- 39034_ Acquired Sigix Corpse. 39042_ Acquired Prototype Ballistic Cannon. 39042_ Identified Hyp. Linear Accelerator. 39044_ Dropped Hyp. Linear Accelerator. 39053_ Drawn through space via semi-controlled quantum shift. 39132_ Workstation disabled. 39135_ Drawn through space via semi-controlled quantum shift. 39150_ Acquired Integrated Reactor. 39151_ Integrated Reactor installed, core energy generation increased (+10). 39155_ Impact Drone retrieved by Cep. Impact Drone Bay (repair cost: 7). 39155_ Impact Drone retrieved by Cep. Impact Drone Bay (repair cost: 5). 39156_ Impact Drone retrieved by Cep. Impact Drone Bay (no repairs). 39159_ Warped through subspace, drawn to slip node. 39159_ EXIT=FOUND 39162_ Impact Drone released from Cep. Impact Drone Bay. 39167_ Dropped Quantum Companion. 39168_ Exp. Field Recycling Unit collects Quantum Companion, recycling 131 matter... Quantum Companion: "I'll be back." Map ----- +----------------------------------------------------+ | | | | | | | | | | | | | | | | | | | | | | | | | | | | | | | | | ?????????????????????????????????????????????????? | | ?????????????????????????????????????????????????? | | ?????????????????????????????????????????????????? | | ?????????????????????????????????????????????????? | | ?????????????????????????????????????????????????? | | ?????????????????????????????????????????????????? | | ????????????????????????###??????????????????????? | | ???????????????????????## ##?????????????????????? | | ???????????????????????# n#?????????????????????? | | ???????????????????????# @ #?????????????????????? | | ??????????????????????## #?????????????????????? | | ??????????????????????# n #?????????????????????? | | ??????????????????????# n ##?????????????????????? | | ??????????????????????## #?????????????????????? | | ??????????????????????# n #?????????????????????? | | ??????????????????????# n##?????????????????????? | | ??????????????????????# < #?????????????????????? | | ??????????????????????# ##?????????????????????? | | ??????????????????????## #??????????????????????? | | ???????????????????????####??????????????????????? | | ?????????????????????????????????????????????????? | | ?????????????????????????????????????????????????? | | ?????????????????????????????????????????????????? | | ?????????????????????????????????????????????????? | | ?????????????????????????????????????????????????? | | ?????????????????????????????????????????????????? | | ?????????????????????????????????????????????????? | | ?????????????????????????????????????????????????? | | ?????????????????????????????????????????????????? | | ?????????????????????????????????????????????????? | | ?????????????????????????????????????????????????? | | ?????????????????????????????????????????????????? | | ?????????????????????????????????????????????????? | | ?????????????????????????????????????????????????? | +----------------------------------------------------+ Best States ------------- Heat Dissipation 120 Coolant Potential 120 Energy Generation 71 Energy Capacity 2450 Matter Stores 300 Matter Capacity 300 Sight Range 24 Robot Scan Range 18 Terrain Scan Density 10 Jamming Range 14 Cloak Strength 9 Power Amplification 40 Additional Mass Support 9 Corruption Block 20 Armor Coverage 1200 Resistance: KI 30 Resistance: TH 75 Resistance: I 20 Core Shielding 90 Utility Shielding 90 Weapon Shielding 100 Point Defense Rating 480 Weapon Cycling 30 Melee Speed Boost 50 Phase Shifting 20 Evasion (%) 96 Targeting Accuracy 30 Melee Accuracy 24 Launcher Accuracy 60 Core Analysis 12 Armor Integrity Analysis 30 Recoil Reduction 4 Energy Filtering 50 Particle Charging 37 Offensive Hacking 57 Defensive Hacking 16 Authchip Count 1 Trap Extractor Capacity 6 Item Schematics ----------------- Huge Storage Unit | -10/Materials | Hacked Lgt. Humpback | -8/Scraptown | Extrapolated Spk. Treads | -8/Scraptown | Extrapolated Mak. Leg | -8/Scraptown | Extrapolated Mak. Coolant Network | -8/Scraptown | Extrapolated Vmp. Humpback | -8/Scraptown | Extrapolated Deep Structural Scanner | -8/Scraptown | Extrapolated 0b10 Decoder Chip [Generic] | -8/Scraptown | Extrapolated 0b10 Decoder Chip [Scout] | -8/Scraptown | Extrapolated 0b10 Decoder Chip [Skirmisher] | -8/Scraptown | Extrapolated Mak. Targeting Computer | -8/Scraptown | Extrapolated Mak. Light Armor Plating | -8/Scraptown | Extrapolated Vmp. Brace Plating | -8/Scraptown | Extrapolated Mak. System Shield | -8/Scraptown | Extrapolated Machine Rigger | -8/Scraptown | Extrapolated Hvy. Beamcaster | -8/Scraptown | Extrapolated Ripper | -8/Scraptown | Extrapolated Mak. Flight Unit | -6/Factory | Extrapolated Energy Deflector | -6/Factory | Extrapolated Mak. Heavy Armor Plating | -6/Factory | Extrapolated Adv. Signal Interpreter | -6/Factory | Hacked Bore Cannon | -6/Factory | Extrapolated Spk. Medium Treads | -6/Lower Caves | Extrapolated Mak. Thermal Plating | -6/Lower Caves | Extrapolated Beamcaster | -6/Lower Caves | Extrapolated Mak. Trap Scanner | -6/Lower Caves | Extrapolated Mak. Hacking Suite | -6/Lower Caves | Extrapolated Plasma Flamer | -6/Lower Caves | Extrapolated Vmp. Broadsword | -6/Lower Caves | Extrapolated Fire Trap | -6/Lower Caves | Extrapolated Heat Bomb Trap | -6/Lower Caves | Extrapolated Disruptor Cannon | -6/Zion | Archive Imp. Trap Scanner | -6/Zion | Archive Adv. Plasma Cannon | -6/Zion | Archive HERF Cannon | -6/Zion | Archive Lgt. Antimatter Reactor | -6/Zion | Archive Nuclear Pulse Thruster | -6/Zion | Archive Adv. System Shield | -6/Zion | Archive Energy Well | -6/Zion | Archive Adv. Drone Bay | -6/Zion | Archive Phase Cannon | -6/Zion | Archive Lrn. Proton Cannon | -6/Zion | Archive Variable Charge Gun | -6/Zion | Archive Mak. Medium Armor Plating | -6/Zion | Extrapolated Mak. Ablative Armor | -6/Zion | Extrapolated Mak. Weapon Shielding | -6/Deep Caves | Extrapolated Hvy. Battle Rifle | -6/Deep Caves | Extrapolated Multitool | -5/Factory | Extrapolated Mak. Power Shielding | -5/Factory | Extrapolated Mak. Terrain Scanner | -5/Factory | Extrapolated Arc Thrower | -5/Factory | Extrapolated Mak. Transmission Jammer | -5/Factory | Extrapolated Mak. Spear | -5/Factory | Extrapolated Mak. Terrain Scan Processor | -5/Factory | Extrapolated Spk. Heavy Treads | -5/Waste | Extrapolated Mak. Power Source | -5/Waste | Extrapolated Humpback | -5/Waste | Extrapolated Mak. Laser | -5/Waste | Extrapolated Mak. Hammer | -5/Waste | Extrapolated Nanoactuators | -5/Factory | Hacked CPS Tube | -5/Factory | Scanalyzed Exp. Reaction Control System | -5/Factory | Scanalyzed Tactical Coordination Suite | -5/Factory | Extrapolated Mak. ECM Suite | -5/Factory | Extrapolated Hyp. Gauss Cannon | -5/Factory | Hacked Adv. Hacking Suite | -5/Factory | Scanalyzed Mak. Core Shielding | -5/Factory | Extrapolated Mak. Utility Shielding | -5/Factory | Extrapolated Weapon Mount | -5/Factory | Hacked Quantum Capacitor | -5/Factory | Hacked Mapping Drone Bay | -5/Upper Caves | Extrapolated Imp. Arc Thrower | -5/Upper Caves | Extrapolated Mak. Salvage Targeting Computer | -5/Warlord | Extrapolated Mak. Kinetic Plating | -5/Warlord | Extrapolated Enh. Flamer | -4/Proximity Caves | Extrapolated Mak. System Restoration Module | -4/Factory | Extrapolated Hyp. Alpha Cannon | -4/Factory | Extrapolated Graviton Cannon | -4/Factory | Hacked Graphene Brace | -4/Factory | Hacked Vmp. Heavy Siege Treads | -4/Factory | Extrapolated Hvy. Shield Leg | -4/Factory | Hacked Multireflex Exoskeleton | -4/Factory | Extrapolated Field Propulsion Array | -4/Factory | Hacked Mak. Cloaking Device | -4/Factory | Extrapolated Mak. Shrapnel Gun | -4/Factory | Extrapolated Mak. Sensor Array | -4/Factory | Extrapolated Assault Drone Bay | -4/Zhirov | Free Exp. Heat Sink | -4/Zhirov | Free Exp. Optical Array | -4/Zhirov | Free Femtoactuators | -3/Quarantine | Hacked Exp. Biometal Heavy Treads | -3/Quarantine | Hacked Coolant Network | -3/Protoforge | Archive Enh. Multireflex Exoskeleton | -3/Protoforge | Archive Adv. EM Shield | -3/Protoforge | Archive Spectral Analyzer | -3/Protoforge | Archive Neutron Missile Launcher | -3/Protoforge | Archive Hvy. Hardcell Cannon | -3/Protoforge | Archive Cld. Proton Cannon | -3/Protoforge | Archive Adv. Dynamic Insulation System | -3/Protoforge | Archive Electron Diverter | -3/Protoforge | Archive Imp. KE Penetrator | -3/Protoforge | Archive Exp. Terrain Scanner | -2/Testing | Archive Diametric Drive | -2/Testing | Archive Imp. Energy Well | -2/Testing | Archive Imp. Matter Neutralizer | -2/Testing | Archive Exp. Signal Interpreter | -2/Testing | Archive Exp. Myomer Leg | -2/Testing | Archive Hvy. Gatling Laser | -2/Testing | Archive Adv. Kinecellerator | -2/Testing | Archive Enh. Gamma Bomb Array | -2/Testing | Archive Adv. Variable Charge Gun | -2/Testing | Archive Exp. Energy Well | -2/Testing | Archive Shock Maul | -2/Testing | Archive Robot Schematics ------------------ M-13 Machinist | -10/Mines | Hacked R-06 Scavenger | -6/Zion | Archive S-27 Virus | -6/Zion | Archive A-15 Conveyor | -6/Zion | Archive L-61 Swordsman | -6/Zion | Archive A-27 Freighter | -3/Quarantine | Hacked B-74 Champion | -3/Protoforge | Archive G-67 Veteran | -2/Testing | Archive K-01 Serf | -2/Testing | Archive T-07 Excavator | -2/Testing | Archive Fabricated ------------ Hyp. Alpha Cannon | x1 | -4/Factory | Authchip Field Propulsion Array | x1 | -4/Factory Hds. Centrium Heavy Treads | x1 | -4/Factory | Preloaded Repaired ---------- Assault Rifle | 67% | -10/Materials Lgt. Assault Rifle | 72% | -10/Materials Adv. Sensor Array | 33% | -5/Factory Microactuators | 80% | -5/Factory Imp. VTOL Module | 48% | -5/Factory Q-thruster | 45% | -4/Factory Studied --------- Cesium-ion Thruster | -6/Factory | Hacked Lgt. Fission Core | -6/Factory | Hacked Nuclear Pulse Thruster | -5/Factory | Hacked Imp. Datajack | -5/Factory | Hacked Field Propulsion Array | -3/Quarantine | Hacked Nuclear Pulse Array | -3/Quarantine | Hacked Field Propulsion Drive | -3/Protoforge | Hacked Fusion Bomb Launcher | -2/Research | Hacked Alien Tech Used ----------------- Integrated Reactor Core Cannon Phase Armor Sigix Broadsword Matter Drive Concept Nanofilaments [Tensile] Transdimensional Reconstructor Integrated Mediator High-powered Transdimensional Reconstructor Achievements -------------- None Challenges ------------ None Game ------ Seed ChipBehemothBoregun Manual? 0 Play Time 11:49:51 Cumulative 1147.5 hours Start 2025.12.08 @ 06:16:10 End 2025.12.08 @ 23:02:03 Sessions 3 Manual Loads 0 Difficulty Rogue Special Mode None Game No. 398 Rogue 393 Adventurer 4 Explorer 1 Win Type 1 Total 24 Types 13/4/1/2/0/1/0/0/2/1 Lore% 97 Gallery% 96 Achievement% 81 Wizard Run 0 Options --------- Layout 0 ASCII 0 Keyboard 0 Movement Numpad Keybinds 0 Fullscreen 2 Font 18/SmallcapsGlow Map View 76x50 Zoom Use 0% Tactical HUD 1 Map Filters NONE Filters NONE Steam 1 RUN: c3eb787b-01f0-47b3-83fb-19a9139d87bf